Workbook

Sheet раскл3-7
C2: Меню-раскладка к примерному 10-дневному меню
C3: для организации питания детей в дошкольных образовательных учреждениях
C4: от 3-7 лет
A5: День 1 - ый
A6: Прием пищи | C6: Выход блюда | D6: Кол - во | E6: Кол - во | F6: Пищевые вещества (г) | I6: Энергетическая | J6: № рецептуры
A7: Наименование блюд | D7: (в гр ) | E7: (в гр ) | I7: ценность
D8: брутто | E8: нетто | F8: белки | G8: жиры | H8: угл-ды | I8: Ккал
B9: ЗАВТРАК
A10: Каша манная молочная с маслом | C10: 200/5 | F10: 10.00 | G10: 10.00 | H10: 24.50 | I10: 228.00 | J10: ТТК №4
B11: Крупа манная | D11: 20.00 | E11: 20.00
B12: Молоко | D12: 100.00 | E12: 100.00
B13: вода | D13: 76.00 | E13: 76.00
B14: сахар | D14: 3.00 | E14: 3.00
B15: Соль | D15: 1.50 | E15: 1.50
B16: Масло сливочное | D16: 5.00 | E16: 5.00
A17: Чай с сахаром | C17: 180/5 | F17: 0.06 | G17: 0.02 | H17: 4.99 | I17: 20.38 | J17: № 411 Дели2016
B18: Заварка | D18: 0.3 | E18: 0.3
B19: сахар | D19: 5 | E19: 5
B20: Вода | D20: 180 | E20: 180
A21: Бутерброд с маслом сливочным | C21: 30/5 | F21: 2.30 | G21: 4.50 | H21: 15.40 | I21: 111.00 | J21: №1 Дели2010
B22: Батон нарезной | D22: 30.00 | E22: 30.00
B23: Масло сливочное | D23: 5.00 | E23: 5.00
A24: Итого: | C24: 425 | F24: 12.36 | G24: 14.52 | H24: 44.89 | I24: 359.38
A25: Сок | C25: 125 | D25: 125 | E25: 125 | F25: 0.60 | G25: 0.06 | H25: 22.00 | I25: 90.90 | J25: №418Дели2016
A26: абрикосовый
A27: Итого: | C27: 125 | F27: 0.60 | G27: 0.06 | H27: 22.00 | I27: 90.90
C28: 550 | F28: 12.96 | G28: 14.58 | H28: 66.89 | I28: 450.28
B29: ОБЕД
A30: Салат из капусты с яблоками | C30: 50 | F30: 0.70 | G30: 2.50 | H30: 4.50 | I30: 43.50 | J30: №7 Партнер 2014
B31: Капуста свежая | D31: 66.25 | E31: 53
B32: масса стертой капусты | E32: 33
B33: Яблоки | D33: 19 | E33: 14
B34: Сахар | D34: 1 | E34: 1
B35: Масло растительное | D35: 1.5 | E35: 1.5
B36: соль | D36: 0.6 | E36: 0.6
A37: Рассольник ленинградский с курицей, со сметаной | C37: 200/15/5 | F37: 4.56 | G37: 7.50 | H37: 12.64 | I37: 136.30 | J37: №82 Дели 2016
B38: цыплята | D38: 33.85 | E38: 22
B39: Картофель | D39: 86.00 | E39: 60.00
B40: Крупа перловая | D40: 8.00 | E40: 8.00
B41: Морковь | D41: 10.00 | E41: 8.00
B42: Лук репчатый | D42: 4.76 | E42: 4.00
B43: Масло растительное | D43: 3.00 | E43: 3.00
B44: Огурцы соленые | D44: 21.84 | E44: 12.00
B45: Сметана | D45: 5.00 | E45: 5.00
B46: Соль | D46: 1.00 | E46: 1.00
B47: Вода | D47: 152.00 | E47: 152.00
A48: Тефтели из говядины с соусом томатным | C48: 70/10 | F48: 6.2 | G48: 6.5 | H48: 5 | I48: 103 | J48: ТТК № 1152 от 09.10.2020 и №364 С-Петербург 2008
B49: фарш из говядины | D49: 48 | E49: 48
B50: Хлеб пшеничный 1с | D50: 6 | E50: 6
B51: Вода | D51: 6 | E51: 6
B52: Лук репчатый | D52: 14.28 | E52: 12
B53: Крупа манная | D53: 3 | E53: 3
B54: Соль | D54: 0.5 | E54: 0.5
B55: масса полуфабриката | E55: 74
B56: Масло растительное | D56: 2 | E56: 2
B57: соус томатный | E57: 10.0
B58: вода | D58: 9.0 | E58: 9.0
B59: Масло растительное | D59: 0.4 | E59: 0.4
B60: Мука пшеничная | D60: 0.4 | E60: 0.4
B61: морковь | D61: 0.8 | E61: 0.6
B62: Лук репчатый | D62: 0.3 | E62: 0.2
B63: Томат-паста | D63: 1.0 | E63: 1.0
B64: Масло растительное | D64: 0.2 | E64: 0.2
B65: соль | D65: 0.1 | E65: 0.1
B66: сахар | D66: 0.2 | E66: 0.2
A67: Макароны отварные | C67: 130 | F67: 4.80 | G67: 3.60 | H67: 29.40 | I67: 169.20 | J67: №218 Дели 2016
B68: макаронные изделия | D68: 45.50 | E68: 45.50
B69: Масло сливочное | D69: 2.60 | E69: 2.60
B70: Соль | D70: 0.70 | E70: 0.70
A71: Компот из сухофруктов | C71: 180 | F71: 0.7 | G71: 0.0 | H71: 18.0 | I71: 75 | J71: №394, Дели 2016
B72: сухофрукты | D72: 18.36 | E72: 18.00
B73: вода | D73: 182.00 | E73: 182.00
B74: Сахар | D74: 5.00 | E74: 5.00
A75: Хлеб сельский | C75: 37.5 | D75: 37.50 | E75: 37.50 | F75: 1.8 | G75: 0.4 | H75: 18 | I75: 82.5
A76: Итого: | C76: 697.5 | F76: 18.76 | G76: 20.54 | H76: 87.54 | I76: 609.70
B77: ПОЛДНИК
A78: Булочка Домашняя | C78: 50 | F78: 4.90 | G78: 5.00 | H78: 28.00 | I78: 177.00 | J78: №258 Партнер г. Уфа 2014
B79: Мука пшеничная | D79: 34.00 | E79: 34.00
B80: Сахар | D80: 7.00 | E80: 7.00
B81: вода | D81: 14.00 | E81: 14.00
B82: Масло растительное | D82: 7.00 | E82: 7.00
B83: Дрожжи сухие | D83: 0.20 | E83: 0.20
B84: Соль | D84: 0.30 | E84: 0.30
B85: Яйцо | D85: 1.00 | E85: 1.00
B86: Масса полуфабриката | E86: 60.50
B87: Масло растительное | D87: 0.20 | E87: 0.20
A88: Катык | C88: 120 | F88: 3.77 | G88: 3 | H88: 5 | I88: 62.1 | J88: №401Дели2010
B89: катык | D89: 123.60 | E89: 120.00
A90: Рагу с курицей | C90: 40/120 | F90: 6.00 | G90: 10.00 | H90: 16.00 | I90: 178.00 | J90: ТТК №63
B91: цыплята | D91: 86.12 | E91: 56.00
B92: Картофель | D92: 126.00 | E92: 88.00
B93: Морковь | D93: 14.00 | E93: 11.20
B94: Соль | D94: 0.50 | E94: 0.50
B95: вода | D95: 32.00 | E95: 32.00
B96: Масло растительное | D96: 4.00 | E96: 4.00
B97: Мука пшеничная | D97: 2.00 | E97: 2.00
B98: сахар | D98: 0.38 | E98: 0.38
A99: Чай фруктовый | C99: 180/7 | F99: 0.18 | G99: 0.09 | H99: 17.00 | I99: 69.50 | J99: ТТК №56
B100: Заварка | D100: 0.3 | E100: 0.3
B101: урюк | D101: 7.2 | E101: 7.2
B102: сахар | D102: 7 | E102: 7
B103: Вода | D103: 180 | E103: 180
A104: Хлеб пшеничный 1с | C104: 23 | D104: 23.00 | E104: 23.00 | F104: 1.80 | G104: 0.23 | H104: 11.30 | I104: 54.50
A105: Итого: | C105: 540 | F105: 16.65 | G105: 18.32 | H105: 77.30 | I105: 541.10
A106: ВСЕГО: | C106: 1787.5 | F106: 48.37 | G106: 53.44 | H106: 231.73 | I106: 1601.08
A108: День 2- ой
A109: Прием пищи | C109: Выход блюда | D109: Кол - во | E109: Кол - во | F109: Пищевые вещества (г) | I109: Энергетическая | J109: № рецептуры
A110: Наименование блюд | D110: (в гр ) | E110: (в гр ) | I110: ценность
D111: брутто | E111: нетто | F111: белки | G111: жиры | H111: угл-ды | I111: Ккал
B112: ЗАВТРАК
A113: Каша "Дружба" молочная с маслом | C113: 200/5 | F113: 5.20 | G113: 5.80 | H113: 25.20 | I113: 173.80 | J113: ТТК №7
B114: Крупа рисовая | D114: 15.00 | E114: 15.00
B115: Крупа пшенная | D115: 11.00 | E115: 11.00
B116: Молоко | D116: 86.00 | E116: 86.00
B117: Вода | D117: 86.00 | E117: 86.00
B118: Сахар | D118: 1.00 | E118: 1.00
B119: Соль | D119: 1.00 | E119: 1.00
B120: Масло сливочное | D120: 5.00 | E120: 5.00
A121: Какао с молоком | C121: 180 | F121: 2.42 | G121: 2.58 | H121: 13.61 | I121: 87.30 | J121: №272 Парнер г. Уфа 2014
B122: Какао-порошок | D122: 1.50 | E122: 1.50
B123: Сахар | D123: 8.00 | E123: 8.00
B124: Молоко | D124: 90.00 | E124: 90.00
B125: Вода | D125: 100.00 | E125: 100.00
A126: Бутерброд с сыром, маслом | C126: 30/7/3 | F126: 4.80 | G126: 7.20 | H126: 15.40 | I126: 146.00 | J126: №3 Дели2010
B127: Батон нарезной | D127: 30.00 | E127: 30.00
B128: Сыр | D128: 7.14 | E128: 7.00
B129: Масло сливочное | D129: 3.00 | E129: 3.00
A130: Итого: | C130: 425 | F130: 12.42 | G130: 15.58 | H130: 54.21 | I130: 407.10
A131: Фрукты свежие | C131: 100 | D131: 114 | E131: 100 | F131: 1.00 | G131: 0.00 | H131: 8.10 | I131: 36.40 | J131: № 368 Дели 2010
A132: апельсин
A133: Итого: | C133: 100 | F133: 1.00 | G133: 0.00 | H133: 8.10 | I133: 36.40
C134: 525 | F134: 13.42 | G134: 15.58 | H134: 62.31 | I134: 443.50
B135: ОБЕД
A136: Салат из свеклы | C136: 50 | F136: 0.60 | G136: 2.50 | H136: 4.20 | I136: 42.00 | J136: №34, Дели2016
B137: Свекла | D137: 59.38 | E137: 47.50
B138: Масло растительное | D138: 2.50 | E138: 2.50
A139: Суп картофельный с клецками с мясными фрикадельками | C139: 200/15 | F139: 3.60 | G139: 7.80 | H139: 25.60 | I139: 187.00 | J139: №38 Пермь2001
B140: Фарш из говядины | D140: 17.1 | E140: 17.1
B141: Лук репчатый | D141: 1.79 | E141: 1.5
B142: Яйцо | D142: 1.5 | E142: 1.5
B143: Вода для фарша | D143: 1.7 | E143: 1.7
B144: Масса полуфабриката | E144: 20.1
B145: Картофель | D145: 58 | E145: 40
B146: Лук репчатый | D146: 9.52 | E146: 8
B147: Морковь | D147: 10 | E147: 8
B148: Масло растительное | D148: 1.7 | E148: 1.7
B149: Соль | D149: 1 | E149: 1
B150: вода | D150: 152 | E150: 152
B151: клецки | E151: 25
B152: Мука пшеничная | D152: 8.30 | E152: 8.30
B153: Яйцо | D153: 2.08 | E153: 2.08
B154: Масло сливочное | D154: 1.00 | E154: 1.00
B155: вода | D155: 12.50 | E155: 12.50
B156: масса теста | E156: 23.40
A157: Биточки рубленые из рыбы | C157: 70 | F157: 8.75 | G157: 6.80 | H157: 8.15 | I157: 129.00 | J157: ТТК №3Д
B158: рыба | D158: 69.08 | E158: 52.50
B159: Яйцо | D159: 10.50 | E159: 10.50
B160: крупа манная | D160: 1.75 | E160: 1.75
B161: Лук репчатый | D161: 15.50 | E161: 13.00
B162: вода | D162: 5.30 | E162: 5.30
B163: Соль | D163: 0.50 | E163: 0.50
B164: сухари панировочные | D164: 5.00 | E164: 5.00
B165: Масло растительное | D165: 1.50 | E165: 1.50
B166: Сахар | D166: 0.20 | E166: 0.20
B167: Масса полуфабриката | E167: 83.00
A168: Пюре Картофельное | C168: 130 | F168: 3.70 | G168: 4.44 | H168: 25.00 | I168: 155.00 | J168: №137 Партнер 2014
B169: Картофель | D169: 160.00 | E169: 111.60
B170: Молоко | D170: 20.50 | E170: 19.50
B171: Масло сливочное | D171: 3.00 | E171: 3.00
B172: Соль | D172: 1.00 | E172: 1.00
A173: Кисель | C173: 180 | H173: 10.00 | I173: 40.00 | J173: №284Партнер2014
B174: Кисель-концентрат | D174: 21.60 | E174: 21.60
B175: вода | D175: 172.00 | E175: 172.00
B176: Сахар | D176: 5.00 | E176: 5.00
A177: Хлеб сельский | C177: 37.5 | D177: 37.50 | E177: 37.50 | F177: 1.8 | G177: 0.4 | H177: 18 | I177: 82.5
A178: Итого: | C178: 682.5 | F178: 18.45 | G178: 21.94 | H178: 90.95 | I178: 635.50
B179: ПОЛДНИК
A180: Кондитерские изделия | C180: 10 | F180: 2.50 | G180: 3.00 | H180: 30.00 | I180: 158.00
A181: крекер | D181: 10.00 | E181: 10.00
A182: Молоко кипяченое | C182: 120 | F182: 3.40 | G182: 3.00 | H182: 5.70 | I182: 63.40 | J182: №419 Дели2016
B183: молоко | D183: 126.46 | E183: 120.00
A184: Салат из моркови | C184: 50 | F184: 0.75 | G184: 0.06 | H184: 8.50 | I184: 37.00 | J184: №42 Дели2016г
B185: Морковь | D185: 62.5 | E185: 50
B186: Сахар | D186: 0.5 | E186: 0.5
A187: Пудинг из творога с рисом с молоком сгущенным | C187: 150 | F187: 7.50 | G187: 12.00 | H187: 26.00 | I187: 242.00 | J187: № 250 Дели 2016
B188: Творог | D188: 98.8 | E188: 97.5
B189: Крупа рисовая | D189: 18 | E189: 18
B190: Сахар | D190: 9 | E190: 9
B191: Яйцо | D191: 7.8 | E191: 7.8
B192: Масло сливочное | D192: 3.9 | E192: 3.9
B193: Сметана | D193: 3.9 | E193: 3.9
B194: Масса полуфабриката | E194: 153.4
B195: молоко сгущенное | D195: 20 | E195: 20
A196: Чай с сахаром и лимоном | C196: 180/5/5 | F196: 0.12 | G196: 0.01 | H196: 10.20 | I196: 41.40 | J196: №393Дели2010
B197: Заварка | D197: 0.35 | E197: 0.35
B198: Сахар | D198: 5 | E198: 5
B199: лимон | D199: 5.1 | E199: 5
B200: Вода | D200: 180.0 | E200: 180.0
A201: Хлеб пшеничный 1с | C201: 23 | D201: 23.00 | E201: 23.00 | F201: 1.80 | G201: 0.23 | H201: 11.30 | I201: 54.50
A202: Итого: | C202: 543 | F202: 16.07 | G202: 18.30 | H202: 91.70 | I202: 596.30
... 753 more rows

Sheet 1-3 лет Послед
A1: "Согласовано" | E1: "Утверждаю"
A2: ________________________ | E2: Заместитель генерального директора по организации питания АО "Департамент продовольствия и социального питания г. Казани"
A3: __________________________ | E3: __________________А.К. Агапова
E4: __________________2023г
C5: Примерное 10-дневное меню
C6: для организации питания детей в дошкольных образовательных учреждениях
C7: от 1-3 лет с 7-12 часовым пребыванием
A8: День 1 - ый
A9: Прием пищи | C9: Выход блюда | D9: Пищевые вещества (г) | G9: Энергетическая | H9: № рецептуры
A10: Наименование блюд | G10: ценность
D11: белки | E11: жиры | F11: угл-ды | G11: Ккал
B12: ЗАВТРАК
A13: Каша манная молочная с маслом | C13: 150/5 | D13: 7.50 | E13: 7.50 | F13: 18.40 | G13: 171.10 | H13: ТТК №4
A14: Чай с сахаром | C14: 160/4 | D14: 0.05 | E14: 0.01 | F14: 4.42 | G14: 18.00 | H14: № 411 Дели2016
A15: Бутерброд с маслом сливочным | C15: 25/5 | D15: 1.9 | E15: 4.4 | F15: 13 | G15: 99 | H15: №1 Дели2010
A16: Итого: | C16: 350 | D16: =SUM(D12:D15) -> 9.45 | E16: =SUM(E12:E15) -> 11.91 | F16: =SUM(F12:F15) -> 35.82 | G16: =SUM(G12:G15) -> 288.10
A17: Сок | C17: 125 | D17: 0.60 | E17: 0.30 | F17: 13.00 | G17: 57.00 | H17: №399Дели2010
A18: персиковый
A19: Итого: | C19: 125 | D19: =SUM(D17) -> 0.60 | E19: =SUM(E17) -> 0.30 | F19: =SUM(F17) -> 13.00 | G19: =SUM(G17) -> 57.00
C20: 474 | D20: =D16+D19 -> 10.05 | E20: =E16+E19 -> 12.21 | F20: =F16+F19 -> 48.82 | G20: =G16+G19 -> 345.10
B21: ОБЕД
A22: Салат из капусты с яблоками | C22: 30 | D22: 0.60 | E22: 1.38 | F22: 3.00 | G22: 26.80 | H22: №7 Партнер 2014
A23: Рассольник ленинградский с курицей, со сметаной | C23: 150/10/5 | D23: 4 | E23: 6 | F23: 6.3 | G23: 93 | H23: №82 Дели 2016
A24: Тефтели из говядины с соусом томатным | C24: 50/5 | D24: 4.4 | E24: 4.6 | F24: 3.5 | G24: 73 | H24: ТТК № 1152 от 09.10.2020 и №364 С-Петербург 2008
A25: Макароны отварные | C25: 110 | D25: 4.10 | E25: 3.00 | F25: 25.00 | G25: 143.40 | H25: №218 Дели 2016
A26: Компот из сухофруктов | C26: 150 | D26: 0.60 | E26: 0.00 | F26: 15.00 | G26: 62.50 | H26: №394, Дели 2016
A27: Хлеб сельский | C27: 30 | D27: 1.5 | E27: 0.3 | F27: 14.3 | G27: 66
A28: Итого: | C28: 540.00 | D28: =SUM(D21:D27) -> 15.20 | E28: =SUM(E21:E27) -> 15.28 | F28: =SUM(F21:F27) -> 67.10 | G28: =SUM(G21:G27) -> 464.70
B29: ПОЛДНИК
A30: Булочка Домашняя | C30: 40 | D30: 3.90 | E30: 3.50 | F30: 22.40 | G30: 137.00 | H30: №258 Партнер г. Уфа 2014
A31: Катык | C31: 110 | D31: 3.00 | E31: 2.70 | F31: 4.50 | G31: 54.30 | H31: №401Дели2010
A32: Рагу с курицей | C32: 30/100 | D32: 4.60 | E32: 8.20 | F32: 13.00 | G32: 144.00 | H32: ТТК №63
A33: Чай фруктовый | C33: 150/6 | D33: 0.1 | E33: 0.07 | F33: 13.5 | G33: 55 | H33: ТТК №56
A34: Хлеб пшеничный 1с | C34: 20 | D34: 1.6 | E34: 0.2 | F34: 9.8 | G34: 47
A35: Итого: | C35: 456.00 | D35: =SUM(D29:D34) -> 13.20 | E35: =SUM(E29:E34) -> 14.67 | F35: =SUM(F29:F34) -> 63.20 | G35: =SUM(G29:G34) -> 437.30
A36: ВСЕГО: | C36: =C16+C19+C28+C35 -> 1471.00 | D36: =D16+D19+D28+D35 -> 38.45 | E36: =E16+E19+E28+E35 -> 42.16 | F36: =F16+F19+F28+F35 -> 179.12 | G36: =G16+G19+G28+G35 -> 1247.10
A38: День 2- ой
A39: Прием пищи | C39: Выход блюда | D39: Пищевые вещества (г) | G39: Энергетическая | H39: № рецептуры
A40: Наименование блюд | G40: ценность
D41: белки | E41: жиры | F41: угл-ды | G41: Ккал
B42: ЗАВТРАК
A43: Каша "Дружба" молочная с маслом | C43: 150/5 | D43: 3.90 | E43: 4.38 | F43: 19.00 | G43: 131.00 | H43: ТТК №7
A44: Какао с молоком | C44: 160 | D44: 2.00 | E44: 2.20 | F44: 11.30 | G44: 73.30 | H44: №272 Парнер г. Уфа 2014
A45: Бутерброд с сыром, маслом | C45: 25/5/3 | D45: 3.50 | E45: 5.95 | F45: 12.90 | G45: 119.60 | H45: №3Дели2010
A46: Итого: | C46: 350 | D46: =SUM(D42:D45) -> 9.40 | E46: 12.33 | F46: =SUM(F42:F45) -> 43.20 | G46: =SUM(G42:G45) -> 323.90
A47: Фрукты свежие | C47: 100 | D47: 1.00 | E47: 0.00 | F47: 8.10 | G47: 36.00 | H47: № 368 Дели 2010
A48: апельсин
A49: Итого: | C49: 100 | D49: =SUM(D47) -> 1.00 | E49: =SUM(E47) -> 0.00 | F49: =SUM(F47) -> 8.10 | G49: =SUM(G47) -> 36.00
C50: 450 | D50: =D46+D49 -> 10.40 | E50: =E46+E49 -> 12.33 | F50: =F46+F49 -> 51.30 | G50: =G46+G49 -> 359.90
B51: ОБЕД
A52: Салат из свеклы | C52: 30 | D52: 0.36 | E52: 0.96 | F52: 1.80 | G52: 17.30 | H52: №34, Дели2016
A53: Суп картофельный с клецками с мясными фрикадельками | C53: 150/10 | D53: 3.00 | E53: 6.40 | F53: 23.60 | G53: 164.00 | H53: №38 Пермь2001
A54: Биточки рубленые из рыбы | C54: 50 | D54: 6.50 | E54: 4.86 | F54: 10.41 | G54: 111.40 | H54: ТТК №3 Д
A55: Пюре Картофельное | C55: 110 | D55: 2.20 | E55: 3.30 | F55: 15.40 | G55: 100.10 | H55: №137 Партнер 2014
A56: Кисель | C56: 150 | F56: 8.34 | G56: 33.34 | H56: №284Партнер2014
A57: Хлеб сельский | C57: 30 | D57: 1.5 | E57: 0.3 | F57: 14.3 | G57: 66
A58: Итого: | C58: 530.00 | D58: =SUM(D52:D57) -> 13.56 | E58: =SUM(E52:E57) -> 15.82 | F58: =SUM(F52:F57) -> 73.85 | G58: =SUM(G52:G57) -> 492.14
B59: ПОЛДНИК
A60: Кондитерские изделия | C60: 10 | D60: 1.30 | E60: 3.20 | F60: 8.50 | G60: 68.00
A61: крекер
A62: Молоко кипяченое | C62: 110 | D62: 2.50 | E62: 2.75 | F62: 4.00 | G62: 51.00 | H62: №419 Дели2016
A63: Салат из моркови | C63: 30 | D63: 0.60 | E63: 0.05 | F63: 3.00 | G63: 14.00 | H63: №42 Дели2016г
A64: Пудинг из творога с рисом с молоком сгущенным | C64: 130 | D64: 6.00 | E64: 8.50 | F64: 24.00 | G64: 196.00 | H64: № 250 Дели 2016
A65: Чай с сахаром и лимоном | C65: 150/4/4 | D65: 0.09 | E65: 0.01 | F65: 8.50 | G65: 34.50 | H65: №393Дели2010
A66: Хлеб пшеничный 1с | C66: 20 | D66: 1.6 | E66: 0.2 | F66: 9.8 | G66: 47
A67: Итого: | C67: 458 | D67: =SUM(D60:D66) -> 12.09 | E67: =SUM(E60:E66) -> 14.71 | F67: =SUM(F60:F66) -> 57.80 | G67: =SUM(G60:G66) -> 410.50
A68: ВСЕГО: | C68: =C46+C49+C58+C67 -> 1438.00 | D68: =D46+D49+D58+D67 -> 36.05 | E68: =E46+E49+E58+E67 -> 42.86 | F68: =F46+F49+F58+F67 -> 182.95 | G68: =G46+G49+G58+G67 -> 1262.54
A70: День 3 - ий
A71: Прием пищи | C71: Выход блюда | D71: Пищевые вещества (г) | G71: Энергетическая | H71: № рецептуры
A72: Наименование блюд | G72: ценность
D73: белки | E73: жиры | F73: угл-ды | G73: Ккал
B74: ЗАВТРАК
A75: Каша геркулесовая молочная с маслом | C75: 150/5 | D75: 5.00 | E75: 5.50 | F75: 14.00 | G75: 126.00 | H75: ТТК №5
A76: Чай с молоком,сахаром | C76: 160/4 | D76: 2.30 | E76: 2.00 | F76: 11.90 | G76: 74.80 | H76: №394Дели2010
A77: Бутерброд с маслом сливочным | C77: 25/5 | D77: 1.9 | E77: 4.4 | F77: 13 | G77: 99 | H77: №1 Дели2010
A78: Итого: | C78: 350 | D78: =SUM(D74:D77) -> 9.20 | E78: =SUM(E74:E77) -> 11.90 | F78: =SUM(F74:F77) -> 38.90 | G78: =SUM(G74:G77) -> 299.80
A79: Сок | C79: 125 | D79: 0.80 | E79: 0.20 | F79: 12.00 | G79: 53.00 | H79: 399Дели2010
A80: персиковый
A81: Итого: | C81: =SUM(C79:C79) -> 125 | D81: =SUM(D79) -> 0.80 | E81: =SUM(E79) -> 0.20 | F81: =SUM(F79) -> 12.00 | G81: =SUM(G79) -> 53.00
C82: 475 | D82: =D78+D81 -> 10.00 | E82: =E78+E81 -> 12.10 | F82: =F78+F81 -> 50.90 | G82: =G78+G81 -> 352.80
B83: ОБЕД
A84: Салат витаминный | C84: 30 | D84: 0.45 | E84: 0.20 | F84: 2.00 | G84: 11.60 | H84: №15 Партнер 2009
A85: Свекольник с мясными фрикадельками со сметаной | C85: 150/10/5 | D85: 3.12 | E85: 4.80 | F85: 6.10 | G85: 80.00 | H85: №35,сб.Пермь2001
A86: Гуляш из курицы | C86: 40/40 | D86: 5.90 | E86: 7.00 | F86: 17.80 | G86: 157.80 | H86: ТТК №91
A87: Каша гречневая вязкая | C87: 110/2,5 | D87: 4.00 | E87: 3.20 | F87: 17.70 | G87: 116.00 | H87: №182,Дели 2016
A88: Напиток из урюка | C88: 150 | D88: 0.50 | E88: 0.03 | F88: 12.50 | G88: 52.10 | H88: ТТК №68
A89: Хлеб сельский | C89: 30 | D89: 1.5 | E89: 0.3 | F89: 14.3 | G89: 66
A90: Итого: | C90: 567.5 | D90: =SUM(D83:D89) -> 15.47 | E90: =SUM(E83:E89) -> 15.53 | F90: =SUM(F83:F89) -> 70.40 | G90: =SUM(G83:G89) -> 483.50
B91: ПОЛДНИК
A92: Булочка Дорожная | C92: 40 | D92: 3.00 | E92: 4.40 | F92: 29.80 | G92: 170.80 | H92: №453 Дели 2016
A93: Ряженка | C93: 110 | D93: 3.12 | E93: 2.75 | F93: 4.59 | G93: 55.60 | H93: №401Дели2010
A94: Голубцы ленивые | C94: 120 | D94: 4.80 | E94: 7.00 | F94: 12.80 | G94: 133.00 | H94: №306 Сборник методических рекомендаций С Петербург 2008
A95: Чай с сахаром | C95: 160/4 | D95: 0.05 | E95: 0.01 | F95: 4.42 | G95: 18.00 | H95: № 411 Дели2016
A96: Хлеб пшеничный 1с | C96: 20 | D96: 1.6 | E96: 0.2 | F96: 9.8 | G96: 47
A97: Итого: | C97: 454 | D97: =SUM(D92:D96) -> 12.57 | E97: =SUM(E92:E96) -> 14.36 | F97: =SUM(F92:F96) -> 61.41 | G97: =SUM(G92:G96) -> 424.40
A98: ВСЕГО: | C98: =C78+C81+C90+C97 -> 1496.5 | D98: =D78+D81+D90+D97 -> 38.04 | E98: =E78+E81+E90+E97 -> 41.99 | F98: =F78+F81+F90+F97 -> 182.71 | G98: =G78+G81+G90+G97 -> 1260.70
A100: День 4 - ый
A101: Прием пищи | C101: Выход блюда | D101: Пищевые вещества (г) | G101: Энергетическая | H101: № рецептуры
A102: Наименование блюд | G102: ценность
D103: белки | E103: жиры | F103: угл-ды | G103: Ккал
B104: ЗАВТРАК
A105: Каша пшённая молочная с маслом | C105: 150/5 | D105: 5.80 | E105: 4.50 | F105: 16.20 | G105: 128.00 | H105: ТТК №6
A106: Кофейный напиток с молоком | C106: 165/7 | D106: 1 | E106: 1.2 | F106: 10 | G106: 55 | H106: №270 Партнер г. Уфа 2014
A107: Бутерброд с сыром, маслом | C107: 25/5/3 | D107: 3.50 | E107: 5.95 | F107: 12.90 | G107: 119.60 | H107: №3Дели2010
A108: Итого: | C108: 360 | D108: =SUM(D104:D107) -> 10.30 | E108: =SUM(E104:E107) -> 11.65 | F108: =SUM(F104:F107) -> 39.10 | G108: =SUM(G104:G107) -> 302.60
A109: Фрукты свежие | C109: 100 | D109: 0.60 | E109: 0.43 | F109: 14.00 | G109: 62.30 | H109: № 368 Дели 2010
A110: груша
A111: Итого: | C111: 100 | D111: =SUM(D109) -> 0.60 | E111: =SUM(E109) -> 0.43 | F111: =SUM(F109) -> 14.00 | G111: =SUM(G109) -> 62.30
C112: 460 | D112: =D108+D111 -> 10.90 | E112: =E108+E111 -> 12.08 | F112: =F108+F111 -> 53.10 | G112: =G108+G111 -> 364.90
B113: ОБЕД
A114: Салат "Пестрый" | C114: 30 | D114: 0.30 | E114: 1.35 | F114: 2.90 | G114: 25.00 | H114: №31, справ.М2003
A115: Щи со свежей капустой, картофелем, на м/б и сметаной | C115: 150/5 | D115: 3.00 | E115: 6.20 | F115: 13.00 | G115: 120.00 | H115: №73 Дели 2016
A116: Жаркое по-домашнему из отварной говядины | C116: 150 | D116: 8.33 | E116: 8 | F116: 28.2 | G116: 218 | H116: ТТК №29 Д
A117: Компот из сухофруктов | C117: 150 | D117: 0.60 | E117: 0.00 | F117: 15.00 | G117: 62.50 | H117: №394, Дели 2016
A118: Хлеб сельский | C118: 30 | D118: 1.5 | E118: 0.3 | F118: 14.3 | G118: 66
A119: Итого: | C119: 515 | D119: =SUM(D113:D118) -> 13.73 | E119: =SUM(E113:E118) -> 15.85 | F119: =SUM(F113:F118) -> 73.40 | G119: =SUM(G113:G118) -> 491.50
B120: ПОЛДНИК
A121: Кондитерские изделия | C121: 20 | D121: 2.80 | E121: 5.70 | F121: 30.00 | G121: 182.00
A122: вафли
A123: Катык | C123: 110 | D123: 3.00 | E123: 2.70 | F123: 4.50 | G123: 54.30 | H123: №401Дели2010
A124: Салат из моркови с яблоками | C124: 30 | D124: 0.20 | E124: 1.00 | F124: 2.50 | G124: 19.80 | H124: №41Дели2016
A125: Суфле из творога с молоком сгущенным | C125: 130/10 | D125: 7.00 | E125: 8.00 | F125: 23.00 | G125: 192.00 | H125: ТТК №567
A126: Напиток шиповника | C126: 150/4 | D126: 0.5 | E126: 0.25 | F126: 5.4 | G126: 25.9 | H126: ТТК № 59
A127: Хлеб пшеничный 1с | C127: 20 | D127: 1.6 | E127: 0.2 | F127: 9.8 | G127: 47
A128: Итого: | C128: 474 | D128: =SUM(D121:D127) -> 15.10 | E128: =SUM(E121:E127) -> 17.85 | F128: =SUM(F121:F127) -> 75.20 | G128: =SUM(G121:G127) -> 521.00
A129: ВСЕГО: | C129: =C108+C111+C119+C128 -> 1449 | D129: =D108+D111+D119+D128 -> 39.73 | E129: =E108+E111+E119+E128 -> 45.78 | F129: =F108+F111+F119+F128 -> 201.70 | G129: =G108+G111+G119+G128 -> 1377.40
A131: День 5 - ый
A132: Прием пищи | C132: Выход блюда | D132: Пищевые вещества (г) | G132: Энергетическая | H132: № рецептуры
A133: Наименование блюд | G133: ценность
D134: белки | E134: жиры | F134: угл-ды | G134: Ккал
B135: ЗАВТРАК
A136: Каша полбяная молочная с маслом | C136: 150/5 | D136: 6 | E136: 5 | F136: 17.23 | G136: 138 | H136: ТТК №1
A137: Какао с молоком | C137: 160 | D137: 2.00 | E137: 2.20 | F137: 11.30 | G137: 73.30 | H137: №272 Парнер г. Уфа 2014
A138: Бутерброд с маслом сливочным | C138: 25/5 | D138: 1.9 | E138: 4.4 | F138: 13 | G138: 99 | H138: №1 Дели2010
A139: Итого: | C139: 350 | D139: =SUM(D135:D138) -> 9.90 | E139: =SUM(E135:E138) -> 11.60 | F139: =SUM(F135:F138) -> 41.53 | G139: =SUM(G135:G138) -> 310.30
A140: Сок | C140: 125 | D140: 0.30 | E140: 0.00 | F140: 10.00 | G140: 40.00 | H140: №399Дели2010
A141: вишневый
A142: Итого: | C142: 125 | D142: =SUM(D140) -> 0.30 | E142: =SUM(E140) -> 0.00 | F142: =SUM(F140) -> 10.00 | G142: =SUM(G140) -> 40.00
C143: 470 | D143: =D139+D142 -> 10.20 | E143: =E139+E142 -> 11.60 | F143: =F139+F142 -> 51.53 | G143: =G139+G142 -> 350.30
B144: ОБЕД
A145: Салат из свежей капусты | C145: 30 | D145: 0.39 | E145: 1.50 | F145: 2.70 | G145: 25.86 | H145: №21 Дели2016
A146: Суп вермишелевый с картофелем с мясными фрикадельками | C146: 150/10 | D146: 4.00 | E146: 4.45 | F146: 11.70 | G146: 103.00 | H146: №88 Дели 2016
A147: Плов из курицы | C147: 130 | D147: 9 | E147: 10.7 | F147: 30.6 | G147: 253 | H147: №321 Дели 2016
A148: Компот из свежих яблок | C148: 150 | D148: 0.10 | E148: 0.10 | F148: 10.20 | G148: 42.10 | H148: № 390 Дели 2016
A149: Хлеб сельский | C149: 30 | D149: 1.5 | E149: 0.3 | F149: 14.3 | G149: 66
A150: Итого: | C150: 520 | D150: =SUM(D145:D149) -> 14.99 | E150: =SUM(E145:E149) -> 17.05 | F150: 69.50 | G150: 489.96
B151: ПОЛДНИК
A152: Пицца с сыром | C152: 40 | D152: 2.40 | E152: 4.40 | F152: 32.00 | G152: 177.00 | H152: ТТК №1585 от 08.09.2021
A153: Кефир | C153: 110 | D153: 3.1 | E153: 2.75 | F153: 4.4 | G153: 54.8 | H153: №401Дели2010
A154: Омлет натуральный | C154: 130 | D154: 6.00 | E154: 6.50 | F154: 15.00 | G154: 142.50 | H154: №229 Дели2016
A155: Чай с сахаром | C155: 160/4 | D155: 0.05 | E155: 0.01 | F155: 4.42 | G155: 18.00 | H155: № 411 Дели2016
A156: Хлеб пшеничный 1с | C156: 20 | D156: 1.6 | E156: 0.2 | F156: 9.8 | G156: 47
A157: Итого: | C157: 464 | D157: =SUM(D152:D156) -> 13.15 | E157: =SUM(E152:E156) -> 13.86 | F157: =SUM(F152:F156) -> 65.62 | G157: =SUM(G152:G156) -> 439.30
A158: ВСЕГО: | C158: =C139+C142+C150+C157 -> 1459 | D158: =D139+D142+D150+D157 -> 38.34 | E158: =E139+E142+E150+E157 -> 42.51 | F158: =F139+F142+F150+F157 -> 186.65 | G158: =G139+G142+G150+G157 -> 1279.56
C159: 2 НЕДЕЛЯ
A160: День 6 - ой
A161: Прием пищи | C161: Выход блюда | D161: Пищевые вещества (г) | G161: Энергетическая | H161: № рецептуры
A162: Наименование блюд | G162: ценность
D163: белки | E163: жиры | F163: угл-ды | G163: Ккал
B164: ЗАВТРАК
A165: Каша геркулесовая молочная с маслом | C165: 150/5 | D165: 4.80 | E165: 5.00 | F165: 14.00 | G165: 120.00 | H165: ТТК №5
A166: Чай с молоком,сахаром | C166: 160/4 | D166: 2.30 | E166: 2.00 | F166: 11.90 | G166: 74.80 | H166: №394Дели2010
A167: Бутерброд с сыром, маслом | C167: 25/5/3 | D167: 3.50 | E167: 5.95 | F167: 12.90 | G167: 119.60 | H167: №3Дели2010
A168: Итого: | C168: 352 | D168: =SUM(D164:D167) -> 10.60 | E168: =SUM(E164:E167) -> 12.95 | F168: =SUM(F164:F167) -> 38.80 | G168: =SUM(G164:G167) -> 314.40
A169: Фрукты свежие | C169: 100 | D169: 0.36 | E169: 0.10 | F169: 10.00 | G169: 40.00 | H169: №386Дели2016
A170: яблоко
A171: Итого: | C171: =SUM(C169:C169) -> 100 | D171: =SUM(D169) -> 0.36 | E171: =SUM(E169) -> 0.10 | F171: =SUM(F169) -> 10.00 | G171: =SUM(G169) -> 40.00
C172: 452 | D172: =D168+D171 -> 10.96 | E172: 12.30 | F172: =F168+F171 -> 48.80 | G172: =G168+G171 -> 354.40
B173: ОБЕД
A174: Салат из свеклы и моркови | C174: 30 | D174: 0.80 | E174: 2.00 | F174: 3.60 | G174: 35.60 | H174: ТТК №60
A175: Суп картофельный с горохом с мясными фрикадельками и гренками | C175: 150/10/10 | D175: 2.00 | E175: 3.00 | F175: 13.60 | G175: 89.00 | H175: ТТК№139
A176: Биточки куриные "Солнышко" | C176: 50 | D176: 6.40 | E176: 9.00 | F176: 5.20 | G176: 127.00 | H176: ТТК №97Д
A177: Макароны отварные | C177: 110 | D177: 4.10 | E177: 3.00 | F177: 25.00 | G177: 143.40 | H177: №218 Дели 2016
A178: Напиток из урюка | C178: 150 | D178: 0.50 | E178: 0.03 | F178: 12.50 | G178: 52.10 | H178: ТТК №68
A179: Хлеб сельский | C179: 30 | D179: 1.5 | E179: 0.3 | F179: 14.3 | G179: 66
A180: Итого: | C180: 540 | D180: =SUM(D174:D179) -> 15.30 | E180: =SUM(E174:E179) -> 17.33 | F180: 74.20 | G180: 513.10
B181: ПОЛДНИК
A182: Булочка сдобная | C182: 40 | D182: 2 | E182: 4 | F182: 16 | G182: 108 | H182: № 257 Партнер2014 г. Уфа
A183: Ряженка | C183: 110 | D183: 3.12 | E183: 2.75 | F183: 4.59 | G183: 55.60 | H183: №401Дели2010
A184: Гречка с фаршем и овощами | C184: 110 | D184: 6.00 | E184: 8.50 | F184: 25.00 | G184: 200.00 | H184: ТТК №1630 от 10.11.2021
A185: Чай фруктовый | C185: 150/6 | D185: 0.1 | E185: 0.07 | F185: 13.5 | G185: 55 | H185: ТТК №56
A186: Хлеб пшеничный 1с | C186: 20 | D186: 1.6 | E186: 0.2 | F186: 9.8 | G186: 47
A187: Итого: | C187: 436 | D187: =SUM(D182:D186) -> 12.82 | E187: =SUM(E182:E186) -> 15.52 | F187: =SUM(F182:F186) -> 68.89 | G187: =SUM(G182:G186) -> 465.60
A188: ВСЕГО: | C188: =C168+C180+C187 -> 1328 | D188: =D168+D171+D180+D187 -> 39.08 | E188: =E168+E171+E180+E187 -> 45.90 | F188: =F168+F171+F180+F187 -> 191.89 | G188: =G168+G171+G180+G187 -> 1333.10
A190: День 7 - ой
A191: Прием пищи | C191: Выход блюда | D191: Пищевые вещества (г) | G191: Энергетическая | H191: № рецептуры
A192: Наименование блюд | G192: ценность
D193: белки | E193: жиры | F193: угл-ды | G193: Ккал
B194: ЗАВТРАК
A195: Каша пшённая молочная с маслом | C195: 150/5 | D195: 5.80 | E195: 4.50 | F195: 16.20 | G195: 128.00 | H195: ТТК №6
A196: Кофейный напиток с молоком | C196: 165/7 | D196: 1 | E196: 1.2 | F196: 10 | G196: 55 | H196: №270 Партнер г. Уфа 2014
A197: Бутерброд с маслом сливочным | C197: 25/5 | D197: 1.9 | E197: 4.4 | F197: 13 | G197: 99 | H197: №1 Дели2010
A198: Итого: | C198: 357 | D198: =SUM(D194:D197) -> 8.70 | E198: =SUM(E194:E197) -> 10.10 | F198: =SUM(F194:F197) -> 39.20 | G198: =SUM(G194:G197) -> 282.00
A199: Сок | C199: 125 | D199: 1.20 | E199: 1.00 | F199: 9.00 | G199: 47.00 | H199: № 368 Дели 2010
A200: яблочный
A201: Итого: | C201: 125 | D201: =SUM(D199:D200) -> 1.20 | E201: =SUM(E199:E200) -> 1.00 | F201: =SUM(F199:F200) -> 9.00 | G201: =SUM(G199:G200) -> 47.00
C202: 482 | D202: =D198+D201 -> 9.90 | E202: 11.70 | F202: =F198+F201 -> 48.20 | G202: =G198+G201 -> 329.00
B203: ОБЕД
A204: Салат из свежей капусты | C204: 30 | D204: 0.39 | E204: 1.50 | F204: 2.70 | G204: 25.86 | H204: №21 Дели2016
A205: Рассольник ленинградский с курицей, со сметаной | C205: 150/10/5 | D205: 4 | E205: 6 | F205: 6.3 | G205: 93 | H205: №82 Дели 2016
... 131 more rows

Sheet кал1-3
C1: Калорийность в разрезе
D2: ДОУ от 1 до 3 лет
A4: с отклонениями норма | C4: 35,9-37,8-39,7 | D4: 40,18-42,3-44,4 | E4: 173,56-182,7-191,8 | F4: 1197-1260-1323
B5: Объемы порций | C5: Белки | D5: Жиры | E5: Угл-ды | F5: Энергетическая ценность
A6: 1 | B6: 1471.00 | C6: 38.45 | D6: 42.16 | E6: 179.12 | F6: 1247.10
A7: 2 | B7: 1438.00 | C7: 36.05 | D7: 42.86 | E7: 182.95 | F7: 1262.54
A8: 3 | B8: 1496.50 | C8: 38.04 | D8: 41.99 | E8: 182.71 | F8: 1260.70
A9: 4 | B9: 1449.00 | C9: 39.73 | D9: 45.78 | E9: 201.70 | F9: 1377.40
A10: 5 | B10: 1459.00 | C10: 38.34 | D10: 42.51 | E10: 186.65 | F10: 1279.56
A11: 6 | B11: 1328.00 | C11: 39.08 | D11: 45.90 | E11: 191.89 | F11: 1333.10
A12: 7 | B12: 1485.00 | C12: 36.48 | D12: 40.47 | E12: 165.85 | F12: 1158.00
A13: 8 | B13: 1383.00 | C13: 39.77 | D13: 42.24 | E13: 179.38 | F13: 1247.50
A14: 9 | B14: 1448.00 | C14: 39.68 | D14: 41.91 | E14: 189.72 | F14: 1293.70
A15: 10 | B15: 1457.00 | C15: 38.59 | D15: 42.90 | E15: 187.52 | F15: 1288.90
A17: Всего | B17: 14414.50 | C17: 384.21 | D17: 428.71 | E17: 1847.49 | F17: 12748.50
A18: В среднем | B18: 1441.45 | C18: 38.42 | D18: 42.87 | E18: 184.75 | F18: 1274.85

Sheet кал3-7
C5: Калорийность
D6: ДОУ от 3 до 7 лет
A7: с отклонениями норма | C7: 46,17-48,6-51,03 | D7: 51,3-54-56,7 | E7: 223,154-234,9-246,644 | F7: 1539-1620-1701
B8: Объемы порций | C8: Белки | D8: Жиры | E8: Угл-ды | F8: Энергетическая ценность
A9: 1 | B9: 1787.50 | C9: 48.37 | D9: 53.44 | E9: 231.73 | F9: 1601.08
A10: 2 | B10: 1750.50 | C10: 47.94 | D10: 55.82 | E10: 244.96 | F10: 1675.30
A11: 3 | B11: 1789.50 | C11: 47.43 | D11: 52.40 | E11: 229.03 | F11: 1573.68
A12: 4 | B12: 1745.50 | C12: 48.26 | D12: 55.49 | E12: 245.24 | F12: 1676.80
A13: 5 | B13: 1705.50 | C13: 49.01 | D13: 54.48 | E13: 231.44 | F13: 1611.08
A14: 6 | B14: 1732.50 | C14: 50.23 | D14: 56.05 | E14: 238.50 | F14: 1660.70
A15: 7 | B15: 1795.50 | C15: 48.12 | D15: 54.32 | E15: 228.73 | F15: 1593.60
A16: 8 | B16: 1683.50 | C16: 49.29 | D16: 50.80 | E16: 229.75 | F16: 1572.48
A17: 9 | B17: 1778.50 | C17: 50.00 | D17: 54.49 | E17: 231.00 | F17: 1612.80
A18: 10 | B18: 1699.50 | C18: 49.96 | D18: 55.13 | E18: 231.77 | F18: 1623.16
A20: Всего | B20: 17468.00 | C20: 488.59 | D20: 542.43 | E20: 2342.15 | F20: 16200.68
A21: В среднем | B21: 1746.80 | C21: 48.86 | D21: 54.24 | E21: 234.22 | F21: 1620.07

Sheet свод1-3
B1: Расход продуктов ДОУ
D2: от 1 до 3 лет | K2: нетто
A3: Наименов. прод. | B3: 1 | C3: 2 | D3: 3 | E3: 4 | F3: 5 | G3: 6 | H3: 7 | I3: 8 | J3: 9 | K3: 10 | L3: Кол-во | M3: Среднее
A5: Сахар | B5: 22.60 | C5: 23.99 | D5: 20.90 | E5: 26.75 | F5: 17.35 | G5: 22.40 | H5: 26.79 | I5: 20.15 | J5: 26.05 | K5: 17.45 | L5: 224.43 | M5: 22.44
A6: Заварка | B6: 0.40 | C6: 0.30 | D6: 0.40 | E6: 0.00 | F6: 0.20 | G6: 0.40 | H6: 0.30 | I6: 0.20 | J6: 0.20 | K6: 0.20 | L6: 2.60 | M6: 0.26
A7: Яйцо | B7: 0.80 | C7: 16.96 | D7: 1.00 | E7: 6.20 | F7: 99.62 | G7: 6.40 | H7: 12.70 | I7: 24.80 | J7: 9.10 | K7: 105.80 | L7: 283.38 | M7: 28.34
A8: Дрожжи сухие | B8: 0.16 | C8: 0.00 | D8: 0.20 | E8: 0.00 | F8: 0.16 | G8: 0.30 | H8: 0.00 | I8: 0.20 | J8: 0.00 | K8: 0.30 | L8: 1.32 | M8: 0.13
A9: Батон нарезной | B9: 25.00 | C9: 25.00 | D9: 25.00 | E9: 25.00 | F9: 25.00 | G9: 25.00 | H9: 25.00 | I9: 25.00 | J9: 25.00 | K9: 25.00 | L9: 250.00 | M9: 25.00
A10: Хлеб пшеничный 1с | B10: 24.00 | C10: 20.00 | D10: 20.00 | E10: 20.00 | F10: 20.00 | G10: 32.00 | H10: 20.00 | I10: 20.00 | J10: 20.00 | K10: 26.60 | L10: 222.60 | M10: 22.26
A11: Хлеб сельский | B11: 30.00 | C11: 30.00 | D11: 30.00 | E11: 30.00 | F11: 30.00 | G11: 30.00 | H11: 30.00 | I11: 30.00 | J11: 30.00 | K11: 30.00 | L11: 300.00 | M11: 30.00
A12: Мука пшеничная | B12: 28.90 | C12: 6.60 | D12: 27.77 | E12: 0.00 | F12: 18.08 | G12: 24.00 | H12: 0.00 | I12: 28.00 | J12: 36.10 | K12: 30.70 | L12: 200.15 | M12: 20.02
A13: Кисель-концентрат | B13: 0.00 | C13: 17.50 | D13: 0.00 | E13: 0.00 | F13: 0.00 | G13: 0.00 | H13: 17.50 | I13: 0.00 | J13: 0.00 | K13: 0.00 | L13: 35.00 | M13: 3.50
A14: Макаронные изделия | B14: 38.50 | C14: 0.00 | D14: 0.00 | E14: 0.00 | F14: 0.00 | G14: 38.50 | H14: 0.00 | I14: 28.00 | J14: 0.00 | K14: 0.00 | L14: 105.00 | M14: 10.50
A15: Вермишель | B15: 0.00 | C15: 0.00 | D15: 0.00 | E15: 0.00 | F15: 6.00 | G15: 0.00 | H15: 0.00 | I15: 0.00 | J15: 0.00 | K15: 0.00 | L15: 6.00 | M15: 0.60
A16: Крупа рисовая | B16: 0.00 | C16: 26.60 | D16: 6.60 | E16: 0.00 | F16: 31.28 | G16: 0.00 | H16: 0.00 | I16: 27.70 | J16: 0.00 | K16: 19.00 | L16: 111.18 | M16: 11.12
A17: Крупа кукурузная | B17: 0.00 | C17: 0.00 | D17: 0.00 | E17: 0.00 | F17: 0.00 | G17: 0.00 | H17: 0.00 | I17: 0.00 | J17: 0.00 | K17: 0.00 | L17: 0.00 | M17: 0.00
A18: Крупа манная | B18: 17.00 | C18: 1.25 | D18: 0.00 | E18: 10.00 | F18: 0.00 | G18: 0.00 | H18: 9.05 | I18: 15.00 | J18: 0.00 | K18: 0.00 | L18: 52.30 | M18: 5.23
A19: Горох | B19: 0.00 | C19: 0.00 | D19: 0.00 | E19: 0.00 | F19: 0.00 | G19: 15.00 | H19: 0.00 | I19: 0.00 | J19: 0.00 | K19: 0.00 | L19: 15.00 | M19: 1.50
A20: Крупа пшенная | B20: 0.00 | C20: 8.00 | D20: 0.00 | E20: 23.00 | F20: 0.00 | G20: 0.00 | H20: 23.00 | I20: 0.00 | J20: 0.00 | K20: 0.00 | L20: 54.00 | M20: 5.40
A21: Крупа ячневая | B21: 0.00 | C21: 0.00 | D21: 0.00 | E21: 0.00 | F21: 0.00 | G21: 0.00 | H21: 0.00 | I21: 0.00 | J21: 0.00 | K21: 0.00 | L21: 0.00 | M21: 0.00
A22: Полба | B22: 0.00 | C22: 0.00 | D22: 0.00 | E22: 0.00 | F22: 19.00 | G22: 0.00 | H22: 0.00 | I22: 0.00 | J22: 19.00 | K22: 0.00 | L22: 38.00 | M22: 3.80
A23: Крупа перловая | B23: 6.00 | C23: 0.00 | D23: 0.00 | E23: 0.00 | F23: 0.00 | G23: 0.00 | H23: 6.00 | I23: 0.00 | J23: 0.00 | K23: 21.60 | L23: 33.60 | M23: 3.36
A24: Крупа геркулесовая | B24: 0.00 | C24: 0.00 | D24: 19.00 | E24: 0.00 | F24: 0.00 | G24: 19.00 | H24: 0.00 | I24: 0.00 | J24: 0.00 | K24: 0.00 | L24: 38.00 | M24: 3.80
A25: Крупа пшеничная | B25: 0.00 | C25: 0.00 | D25: 0.00 | E25: 0.00 | F25: 0.00 | G25: 0.00 | H25: 0.00 | I25: 0.00 | J25: 0.00 | K25: 0.00 | L25: 0.00 | M25: 0.00
A26: Крупа гречневая | B26: 0.00 | C26: 0.00 | D26: 27.50 | E26: 0.00 | F26: 0.00 | G26: 21.00 | H26: 0.00 | I26: 0.00 | J26: 0.00 | K26: 0.00 | L26: 48.50 | M26: 4.85
A27: Картофель | B27: 118.30 | C27: 124.43 | D27: 25.90 | E27: 118.50 | F27: 45.00 | G27: 30.00 | H27: 139.43 | I27: 12.00 | J27: 141.90 | K27: 15.14 | L27: 770.60 | M27: 77.06
A28: Морковь | B28: 15.63 | C28: 36.00 | D28: 17.60 | E28: 22.00 | F28: 20.60 | G28: 41.54 | H28: 25.00 | I28: 14.60 | J28: 36.00 | K28: 27.90 | L28: 256.87 | M28: 25.69
A29: Лук репчатый | B29: 11.70 | C29: 16.25 | D29: 20.60 | E29: 18.75 | F29: 12.68 | G29: 19.20 | H29: 12.25 | I29: 12.50 | J29: 14.90 | K29: 18.28 | L29: 157.11 | M29: 15.71
A30: Свекла | B30: 0.00 | C30: 28.50 | D30: 38.30 | E30: 20.00 | F30: 0.00 | G30: 17.04 | H30: 0.00 | I30: 24.00 | J30: 28.50 | K30: 0.00 | L30: 156.34 | M30: 15.63
A31: Капуста свежая | B31: 31.80 | C31: 0.00 | D31: 99.00 | E31: 30.00 | F31: 24.30 | G31: 0.00 | H31: 24.30 | I31: 12.00 | J31: 30.00 | K31: 21.00 | L31: 272.40 | M31: 27.24
A32: Икра кабачковая | B32: 0.00 | C32: 0.00 | D32: 0.00 | E32: 0.00 | F32: 0.00 | G32: 0.00 | H32: 0.00 | I32: 0.00 | J32: 0.00 | K32: 0.00 | L32: 0.00 | M32: 0.00
A33: Огурцы соленые | B33: 9.00 | C33: 0.00 | D33: 0.00 | E33: 0.00 | F33: 0.00 | G33: 0.00 | H33: 9.00 | I33: 30.00 | J33: 0.00 | K33: 0.00 | L33: 48.00 | M33: 4.80
A34: Помидоры свежие | B34: 0.00 | C34: 0.00 | D34: 0.00 | E34: 0.00 | F34: 0.00 | G34: 0.00 | H34: 0.00 | I34: 0.00 | J34: 0.00 | K34: 0.00 | L34: 0.00 | M34: 0.00
A35: Огурцы свежие | B35: 0.00 | C35: 0.00 | D35: 0.00 | E35: 0.00 | F35: 0.00 | G35: 0.00 | H35: 0.00 | I35: 0.00 | J35: 0.00 | K35: 0.00 | L35: 0.00 | M35: 0.00
A36: перец | B36: 0.00 | C36: 0.00 | D36: 0.00 | E36: 0.00 | F36: 0.00 | G36: 0.00 | H36: 0.00 | I36: 0.00 | J36: 0.00 | K36: 0.00 | L36: 0.00 | M36: 0.00
A37: Томат-паста | B37: 0.50 | C37: 0.00 | D37: 2.00 | E37: 0.00 | F37: 0.00 | G37: 0.00 | H37: 0.00 | I37: 0.00 | J37: 0.00 | K37: 0.00 | L37: 2.50 | M37: 0.25
A38: Масло сливочное | B38: 12.20 | C38: 15.10 | D38: 18.50 | E38: 8.00 | F38: 14.60 | G38: 15.80 | H38: 18.20 | I38: 12.00 | J38: 27.70 | K38: 16.30 | L38: 158.40 | M38: 15.84
A39: Масло растительное | B39: 12.90 | C39: 3.95 | D39: 13.78 | E39: 11.20 | F39: 9.20 | G39: 10.20 | H39: 5.95 | I39: 6.40 | J39: 5.50 | K39: 5.04 | L39: 84.12 | M39: 8.41
A40: Фрукты свежие | B40: 0.00 | C40: 100.00 | D40: 0.00 | E40: 100.00 | F40: 0.00 | G40: 100.00 | H40: 0.00 | I40: 100.00 | J40: 0.00 | K40: 100.00 | L40: 500.00 | M40: 50.00
A41: Яблоки | B41: 8.40 | C41: 0.00 | D41: 6.75 | E41: 20.90 | F41: 30.00 | G41: 0.00 | H41: 12.90 | I41: 0.00 | J41: 30.00 | K41: 6.75 | L41: 115.70 | M41: 11.57
A42: крыжовник зам. | B42: 0.00 | C42: 0.00 | D42: 0.00 | E42: 0.00 | F42: 0.00 | G42: 0.00 | H42: 0.00 | I42: 0.00 | J42: 0.00 | K42: 0.00 | L42: 0.00 | M42: 0.00
A43: Лимон | B43: 0.00 | C43: 4.00 | D43: 0.00 | E43: 0.00 | F43: 0.00 | G43: 0.00 | H43: 4.00 | I43: 0.00 | J43: 0.00 | K43: 0.00 | L43: 8.00 | M43: 0.80
A44: Ягодная смесь зам. | B44: 0.00 | C44: 0.00 | D44: 0.00 | E44: 0.00 | F44: 0.00 | G44: 0.00 | H44: 0.00 | I44: 0.00 | J44: 0.00 | K44: 0.00 | L44: 0.00 | M44: 0.00
A45: Сок | B45: 125.00 | C45: 0.00 | D45: 125.00 | E45: 0.00 | F45: 125.00 | G45: 0.00 | H45: 125.00 | I45: 0.00 | J45: 125.00 | K45: 0.00 | L45: 625.00 | M45: 62.50
A46: Курага | B46: 0.00 | C46: 0.00 | D46: 0.00 | E46: 0.00 | F46: 0.00 | G46: 0.00 | H46: 0.00 | I46: 0.00 | J46: 0.00 | K46: 0.00 | L46: 0.00 | M46: 0.00
A47: Сухофрукты | B47: 15.00 | C47: 0.00 | D47: 0.00 | E47: 15.00 | F47: 0.00 | G47: 0.00 | H47: 0.00 | I47: 15.00 | J47: 0.00 | K47: 0.00 | L47: 45.00 | M47: 4.50
A48: Урюк | B48: 6.00 | C48: 0.00 | D48: 12.50 | E48: 0.00 | F48: 0.00 | G48: 18.50 | H48: 0.00 | I48: 0.00 | J48: 0.00 | K48: 12.50 | L48: 49.50 | M48: 4.95
A49: повидло фруктовое | B49: 0.00 | C49: 0.00 | D49: 0.00 | E49: 0.00 | F49: 0.00 | G49: 0.00 | H49: 0.00 | I49: 0.00 | J49: 0.00 | K49: 0.00 | L49: 0.00 | M49: 0.00
A50: Шиповник порошок | B50: 0.00 | C50: 0.00 | D50: 0.00 | E50: 2.25 | F50: 0.00 | G50: 0.00 | H50: 0.00 | I50: 0.00 | J50: 2.25 | K50: 0.00 | L50: 4.50 | M50: 0.45
A51: Молоко | B51: 75.00 | C51: 271.50 | D51: 117.00 | E51: 158.50 | F51: 172.20 | G51: 120.60 | H51: 266.50 | I51: 157.40 | J51: 97.00 | K51: 177.20 | L51: 1612.90 | M51: 161.29
A52: Кефир | B52: 0.00 | C52: 0.00 | D52: 0.00 | E52: 0.00 | F52: 110.00 | G52: 0.00 | H52: 0.00 | I52: 0.00 | J52: 0.00 | K52: 110.00 | L52: 220.00 | M52: 22.00
A53: Ряженка | B53: 0.00 | C53: 0.00 | D53: 110.00 | E53: 0.00 | F53: 0.00 | G53: 110.00 | H53: 0.00 | I53: 0.00 | J53: 110.00 | K53: 0.00 | L53: 330.00 | M53: 33.00
A54: Катык | B54: 110.00 | C54: 0.00 | D54: 0.00 | E54: 110.00 | F54: 0.00 | G54: 0.00 | H54: 0.00 | I54: 110.00 | J54: 0.00 | K54: 0.00 | L54: 330.00 | M54: 33.00
A55: Молоко сгущенное | B55: 0.00 | C55: 10.00 | D55: 0.00 | E55: 10.00 | F55: 0.00 | G55: 0.00 | H55: 10.00 | I55: 0.00 | J55: 0.00 | K55: 0.00 | L55: 30.00 | M55: 3.00
A56: Сметана | B56: 5.00 | C56: 3.40 | D56: 5.00 | E56: 17.40 | F56: 8.23 | G56: 0.00 | H56: 10.20 | I56: 5.00 | J56: 8.75 | K56: 0.00 | L56: 62.98 | M56: 6.30
A57: Творог | B57: 0.00 | C57: 84.50 | D57: 0.00 | E57: 92.85 | F57: 0.00 | G57: 0.00 | H57: 119.60 | I57: 0.00 | J57: 72.50 | K57: 0.00 | L57: 369.45 | M57: 36.95
A58: Говядина | B58: 0.00 | C58: 0.00 | D58: 0.00 | E58: 39.20 | F58: 0.00 | G58: 0.00 | H58: 0.00 | I58: 33.80 | J58: 0.00 | K58: 0.00 | L58: 73.00 | M58: 7.30
A59: Фарш из говядины | B59: 34.30 | C59: 11.40 | D59: 59.90 | E59: 0.00 | F59: 11.40 | G59: 47.80 | H59: 0.00 | I59: 0.00 | J59: 50.20 | K59: 29.75 | L59: 244.75 | M59: 24.48
A60: Цыплята | B60: 56.70 | C60: 0.00 | D60: 56.90 | E60: 0.00 | F60: 55.25 | G60: 39.10 | H60: 14.70 | I60: 0.00 | J60: 14.70 | K60: 36.86 | L60: 274.21 | M60: 27.42
A61: Индейка филе | B61: 0.00 | C61: 0.00 | D61: 0.00 | E61: 0.00 | F61: 0.00 | G61: 0.00 | H61: 0.00 | I61: 0.00 | J61: 0.00 | K61: 0.00 | L61: 0.00 | M61: 0.00
A62: куриная грудка | B62: 0.00 | C62: 0.00 | D62: 0.00 | E62: 0.00 | F62: 0.00 | G62: 0.00 | H62: 0.00 | I62: 0.00 | J62: 0.00 | K62: 0.00 | L62: 0.00 | M62: 0.00
A63: Сыр | B63: 0.00 | C63: 5.00 | D63: 0.00 | E63: 5.00 | F63: 14.16 | G63: 5.00 | H63: 0.00 | I63: 5.00 | J63: 0.00 | K63: 5.00 | L63: 39.16 | M63: 3.92
A64: рыба | B64: 0.00 | C64: 37.50 | D64: 0.00 | E64: 0.00 | F64: 0.00 | G64: 0.00 | H64: 37.50 | I64: 0.00 | J64: 0.00 | K64: 0.00 | L64: 75.00 | M64: 7.50
A65: Кофейный напиток | B65: 0.00 | C65: 0.00 | D65: 0.00 | E65: 1.30 | F65: 0.00 | G65: 0.00 | H65: 1.30 | I65: 0.00 | J65: 0.00 | K65: 1.30 | L65: 3.90 | M65: 0.39
A66: Какао-порошок | B66: 0.00 | C66: 1.30 | D66: 0.00 | E66: 0.00 | F66: 1.30 | G66: 0.00 | H66: 0.00 | I66: 1.30 | J66: 0.00 | K66: 0.00 | L66: 3.90 | M66: 0.39
A67: печенье | B67: 0.00 | C67: 0.00 | D67: 0.00 | E67: 0.00 | F67: 0.00 | G67: 0.00 | H67: 0.00 | I67: 0.00 | J67: 20.00 | K67: 0.00 | L67: 20.00 | M67: 2.00
A68: крекер | B68: 0.00 | C68: 10.00 | D68: 0.00 | E68: 0.00 | F68: 0.00 | G68: 0.00 | H68: 10.00 | I68: 0.00 | J68: 0.00 | K68: 0.00 | L68: 20.00 | M68: 2.00
A69: Соль | B69: 3.25 | C69: 2.43 | D69: 4.40 | E69: 2.30 | F69: 3.68 | G69: 3.30 | H69: 3.33 | I69: 3.80 | J69: 3.00 | K69: 3.86 | L69: 33.35 | M69: 3.34
A70: Крахмал | B70: 0.00 | C70: 9.00 | D70: 0.00 | E70: 0.00 | F70: 0.00 | G70: 9.00 | H70: 0.00 | I70: 0.00 | J70: 0.00 | K70: 0.00 | L70: 18.00 | M70: 1.80
A71: Сухари панировочные | B71: 0.00 | C71: 3.75 | D71: 0.00 | E71: 0.00 | F71: 0.00 | G71: 4.00 | H71: 8.95 | I71: 0.00 | J71: 1.70 | K71: 4.00 | L71: 22.40 | M71: 2.24
A72: вафли | B72: 0.00 | C72: 0.00 | D72: 0.00 | E72: 20.00 | F72: 0.00 | G72: 0.00 | H72: 0.00 | I72: 0.00 | J72: 0.00 | K72: 0.00 | L72: 20.00 | M72: 2.00
A73: Крупы, бобовые | B73: 23.00 | C73: 35.85 | D73: 53.10 | E73: 33.00 | F73: 50.28 | G73: 55.00 | H73: 38.05 | I73: 42.70 | J73: 19.00 | K73: 40.60 | L73: 390.58 | M73: 39.06
A74: Овощи разные | B74: 68.63 | C74: 80.75 | D74: 177.50 | E74: 90.75 | F74: 57.58 | G74: 77.78 | H74: 70.55 | I74: 93.10 | J74: 109.40 | K74: 67.18 | L74: 893.22 | M74: 89.32
A75: Фрукты | B75: 8.40 | C75: 104.00 | D75: 6.75 | E75: 120.90 | F75: 30.00 | G75: 100.00 | H75: 16.90 | I75: 100.00 | J75: 30.00 | K75: 106.75 | L75: 623.70 | M75: 62.37
A76: Фрукты сухие | B76: 21.00 | C76: 0.00 | D76: 12.50 | E76: 17.25 | F76: 0.00 | G76: 18.50 | H76: 0.00 | I76: 15.00 | J76: 2.25 | K76: 12.50 | L76: 99.00 | M76: 9.90
A77: Молочные прод. | B77: 185.00 | C77: 281.50 | D77: 227.00 | E77: 278.50 | F77: 282.20 | G77: 230.60 | H77: 276.50 | I77: 267.40 | J77: 207.00 | K77: 287.20 | L77: 2522.90 | M77: 252.29
A78: Говядина | B78: 34.30 | C78: 11.40 | D78: 59.90 | E78: 39.20 | F78: 11.40 | G78: 47.80 | H78: 0.00 | I78: 33.80 | J78: 50.20 | K78: 29.75 | L78: 317.75 | M78: 31.78
A79: птица | B79: 56.70 | C79: 0.00 | D79: 56.90 | E79: 0.00 | F79: 55.25 | G79: 39.10 | H79: 14.70 | I79: 0.00 | J79: 14.70 | K79: 36.86 | L79: 274.21 | M79: 27.42
A80: Макаронные изделия | B80: 38.50 | C80: 0.00 | D80: 0.00 | E80: 0.00 | F80: 6.00 | G80: 38.50 | H80: 0.00 | I80: 28.00 | J80: 0.00 | K80: 0.00 | L80: 111.00 | M80: 11.10
A81: Хлеб пшеничный | B81: 49.00 | C81: 45.00 | D81: 45.00 | E81: 45.00 | F81: 45.00 | G81: 57.00 | H81: 45.00 | I81: 45.00 | J81: 45.00 | K81: 51.60 | L81: 472.60 | M81: 47.26
A82: Кондитерские изделия | B82: 0.00 | C82: 10.00 | D82: 0.00 | E82: 20.00 | F82: 0.00 | G82: 0.00 | H82: 10.00 | I82: 0.00 | J82: 20.00 | K82: 0.00 | L82: 60.00 | M82: 6.00
A83: Примечание: расход хлеба пшеничного с учетом расхода сухарей панировочных
B84: Расход продуктов ДОУ
D85: от 1 до 3 лет | K85: брутто
A87: Наименов. прод. | B87: 1 | C87: 2 | D87: 3 | E87: 4 | F87: 5 | G87: 6 | H87: 7 | I87: 8 | J87: 9 | K87: 10 | L87: Кол-во | M87: Среднее
A89: Сахар | B89: 22.60 | C89: 23.99 | D89: 20.90 | E89: 26.75 | F89: 17.35 | G89: 22.40 | H89: 26.79 | I89: 20.15 | J89: 26.05 | K89: 17.45 | L89: 224.43 | M89: 22.44
A90: Заварка | B90: 0.40 | C90: 0.30 | D90: 0.40 | E90: 0.00 | F90: 0.20 | G90: 0.40 | H90: 0.30 | I90: 0.20 | J90: 0.20 | K90: 0.20 | L90: 2.60 | M90: 0.26
A91: Яйцо | B91: 0.80 | C91: 16.96 | D91: 1.00 | E91: 6.20 | F91: 99.62 | G91: 6.40 | H91: 12.70 | I91: 24.80 | J91: 9.10 | K91: 105.80 | L91: 283.38 | M91: 28.34
A92: Дрожжи сухие | B92: 0.16 | C92: 0.00 | D92: 0.20 | E92: 0.00 | F92: 0.16 | G92: 0.30 | H92: 0.00 | I92: 0.20 | J92: 0.00 | K92: 0.30 | L92: 1.32 | M92: 0.13
A93: Батон нарезной | B93: 25.00 | C93: 25.00 | D93: 25.00 | E93: 25.00 | F93: 25.00 | G93: 25.00 | H93: 25.00 | I93: 25.00 | J93: 25.00 | K93: 25.00 | L93: 250.00 | M93: 25.00
A94: Хлеб пшеничный 1с | B94: 24.00 | C94: 20.00 | D94: 20.00 | E94: 20.00 | F94: 20.00 | G94: 34.40 | H94: 20.00 | I94: 20.00 | J94: 20.00 | K94: 26.60 | L94: 225.00 | M94: 22.50
A95: Хлеб сельский | B95: 30.00 | C95: 30.00 | D95: 30.00 | E95: 30.00 | F95: 30.00 | G95: 30.00 | H95: 30.00 | I95: 30.00 | J95: 30.00 | K95: 30.00 | L95: 300.00 | M95: 30.00
A96: Мука пшеничная | B96: 28.90 | C96: 6.60 | D96: 27.77 | E96: 0.00 | F96: 18.08 | G96: 24.00 | H96: 0.00 | I96: 28.00 | J96: 36.10 | K96: 30.70 | L96: 200.15 | M96: 20.02
A97: Кисель-концентрат | B97: 0.00 | C97: 17.50 | D97: 0.00 | E97: 0.00 | F97: 0.00 | G97: 0.00 | H97: 17.50 | I97: 0.00 | J97: 0.00 | K97: 0.00 | L97: 35.00 | M97: 3.50
A98: Макаронные изделия | B98: 38.50 | C98: 0.00 | D98: 0.00 | E98: 0.00 | F98: 0.00 | G98: 38.50 | H98: 0.00 | I98: 28.00 | J98: 0.00 | K98: 0.00 | L98: 105.00 | M98: 10.50
A99: Вермишель | B99: 0.00 | C99: 0.00 | D99: 0.00 | E99: 0.00 | F99: 6.00 | G99: 0.00 | H99: 0.00 | I99: 0.00 | J99: 0.00 | K99: 0.00 | L99: 6.00 | M99: 0.60
A100: Крупа рисовая | B100: 0.00 | C100: 26.60 | D100: 6.60 | E100: 0.00 | F100: 31.28 | G100: 0.00 | H100: 0.00 | I100: 27.70 | J100: 0.00 | K100: 19.00 | L100: 111.18 | M100: 11.12
A101: Крупа кукурузная | B101: 0.00 | C101: 0.00 | D101: 0.00 | E101: 0.00 | F101: 0.00 | G101: 0.00 | H101: 0.00 | I101: 0.00 | J101: 0.00 | K101: 0.00 | L101: 0.00 | M101: 0.00
A102: Крупа манная | B102: 17.00 | C102: 1.25 | D102: 0.00 | E102: 10.00 | F102: 0.00 | G102: 0.00 | H102: 9.05 | I102: 15.00 | J102: 0.00 | K102: 0.00 | L102: 52.30 | M102: 5.23
A103: Горох | B103: 0.00 | C103: 0.00 | D103: 0.00 | E103: 0.00 | F103: 0.00 | G103: 15.20 | H103: 0.00 | I103: 0.00 | J103: 0.00 | K103: 0.00 | L103: 15.20 | M103: 1.52
A104: Крупа пшенная | B104: 0.00 | C104: 8.00 | D104: 0.00 | E104: 23.00 | F104: 0.00 | G104: 0.00 | H104: 23.00 | I104: 0.00 | J104: 0.00 | K104: 0.00 | L104: 54.00 | M104: 5.40
A105: Крупа ячневая | B105: 0.00 | C105: 0.00 | D105: 0.00 | E105: 0.00 | F105: 0.00 | G105: 0.00 | H105: 0.00 | I105: 0.00 | J105: 0.00 | K105: 0.00 | L105: 0.00 | M105: 0.00
A106: Полба | B106: 0.00 | C106: 0.00 | D106: 0.00 | E106: 0.00 | F106: 19.00 | G106: 0.00 | H106: 0.00 | I106: 0.00 | J106: 19.00 | K106: 0.00 | L106: 38.00 | M106: 3.80
A107: Крупа перловая | B107: 6.00 | C107: 0.00 | D107: 0.00 | E107: 0.00 | F107: 0.00 | G107: 0.00 | H107: 6.00 | I107: 0.00 | J107: 0.00 | K107: 21.60 | L107: 33.60 | M107: 3.36
A108: Крупа геркулесовая | B108: 0.00 | C108: 0.00 | D108: 19.00 | E108: 0.00 | F108: 0.00 | G108: 19.00 | H108: 0.00 | I108: 0.00 | J108: 0.00 | K108: 0.00 | L108: 38.00 | M108: 3.80
A109: Крупа пшеничная | B109: 0.00 | C109: 0.00 | D109: 0.00 | E109: 0.00 | F109: 0.00 | G109: 0.00 | H109: 0.00 | I109: 0.00 | J109: 0.00 | K109: 0.00 | L109: 0.00 | M109: 0.00
A110: Крупа гречневая | B110: 0.00 | C110: 0.00 | D110: 27.50 | E110: 0.00 | F110: 0.00 | G110: 21.00 | H110: 0.00 | I110: 0.00 | J110: 0.00 | K110: 0.00 | L110: 48.50 | M110: 4.85
A111: Картофель | B111: 170.00 | C111: 178.00 | D111: 37.00 | E111: 170.00 | F111: 65.00 | G111: 43.00 | H111: 200.00 | I111: 18.00 | J111: 204.00 | K111: 22.00 | L111: 1107.00 | M111: 110.70
A112: Морковь | B112: 19.55 | C112: 45.00 | D112: 22.61 | E112: 27.50 | F112: 25.75 | G112: 52.97 | H112: 31.25 | I112: 18.25 | J112: 45.00 | K112: 35.48 | L112: 323.36 | M112: 32.34
A113: Лук репчатый | B113: 13.89 | C113: 19.33 | D113: 24.43 | E113: 22.31 | F113: 15.08 | G113: 22.66 | H113: 14.57 | I113: 14.84 | J113: 17.74 | K113: 21.70 | L113: 186.55 | M113: 18.66
A114: Свекла | B114: 0.00 | C114: 37.91 | D114: 52.09 | E114: 27.20 | F114: 0.00 | G114: 23.17 | H114: 0.00 | I114: 31.92 | J114: 38.76 | K114: 0.00 | L114: 211.05 | M114: 21.11
A115: Капуста свежая | B115: 39.75 | C115: 0.00 | D115: 123.75 | E115: 37.50 | F115: 30.37 | G115: 0.00 | H115: 30.37 | I115: 15.00 | J115: 37.50 | K115: 26.25 | L115: 340.49 | M115: 34.05
A116: Икра кабачковая | B116: 0.00 | C116: 0.00 | D116: 0.00 | E116: 0.00 | F116: 0.00 | G116: 0.00 | H116: 0.00 | I116: 0.00 | J116: 0.00 | K116: 0.00 | L116: 0.00 | M116: 0.00
A117: Огурцы соленые | B117: 16.00 | C117: 0.00 | D117: 0.00 | E117: 0.00 | F117: 0.00 | G117: 0.00 | H117: 16.00 | I117: 54.60 | J117: 0.00 | K117: 0.00 | L117: 86.60 | M117: 8.66
A118: Помидоры свежие | B118: 0.00 | C118: 0.00 | D118: 0.00 | E118: 0.00 | F118: 0.00 | G118: 0.00 | H118: 0.00 | I118: 0.00 | J118: 0.00 | K118: 0.00 | L118: 0.00 | M118: 0.00
A119: Огурцы свежие | B119: 0.00 | C119: 0.00 | D119: 0.00 | E119: 0.00 | F119: 0.00 | G119: 0.00 | H119: 0.00 | I119: 0.00 | J119: 0.00 | K119: 0.00 | L119: 0.00 | M119: 0.00
A120: перец | B120: 0.00 | C120: 0.00 | D120: 0.00 | E120: 0.00 | F120: 0.00 | G120: 0.00 | H120: 0.00 | I120: 0.00 | J120: 0.00 | K120: 0.00 | L120: 0.00 | M120: 0.00
A121: Томат-паста | B121: 0.50 | C121: 0.00 | D121: 2.00 | E121: 0.00 | F121: 0.00 | G121: 0.00 | H121: 0.00 | I121: 0.00 | J121: 0.00 | K121: 0.00 | L121: 2.50 | M121: 0.25
A122: Масло сливочное | B122: 12.20 | C122: 15.10 | D122: 18.50 | E122: 8.00 | F122: 14.60 | G122: 15.80 | H122: 18.20 | I122: 12.00 | J122: 27.70 | K122: 16.30 | L122: 158.40 | M122: 15.84
A123: Масло растительное | B123: 12.90 | C123: 3.95 | D123: 13.78 | E123: 11.20 | F123: 9.20 | G123: 10.20 | H123: 5.95 | I123: 6.40 | J123: 5.50 | K123: 5.04 | L123: 84.12 | M123: 8.41
A124: Фрукты свежие | B124: 0.00 | C124: 114.00 | D124: 0.00 | E124: 114.00 | F124: 0.00 | G124: 114.00 | H124: 0.00 | I124: 114.00 | J124: 0.00 | K124: 114.00 | L124: 570.00 | M124: 57.00
A125: Яблоки | B125: 11.40 | C125: 0.00 | D125: 7.70 | E125: 23.79 | F125: 34.00 | G125: 0.00 | H125: 14.67 | I125: 0.00 | J125: 34.00 | K125: 7.70 | L125: 133.26 | M125: 13.33
A126: крыжовник зам. | B126: 0.00 | C126: 0.00 | D126: 0.00 | E126: 0.00 | F126: 0.00 | G126: 0.00 | H126: 0.00 | I126: 0.00 | J126: 0.00 | K126: 0.00 | L126: 0.00 | M126: 0.00
A127: Лимон | B127: 0.00 | C127: 4.10 | D127: 0.00 | E127: 0.00 | F127: 0.00 | G127: 0.00 | H127: 4.10 | I127: 0.00 | J127: 0.00 | K127: 0.00 | L127: 8.20 | M127: 0.82
A128: Ягодная смесь зам. | B128: 0.00 | C128: 0.00 | D128: 0.00 | E128: 0.00 | F128: 0.00 | G128: 0.00 | H128: 0.00 | I128: 0.00 | J128: 0.00 | K128: 0.00 | L128: 0.00 | M128: 0.00
A129: Сок | B129: 125.00 | C129: 0.00 | D129: 125.00 | E129: 0.00 | F129: 125.00 | G129: 0.00 | H129: 125.00 | I129: 0.00 | J129: 125.00 | K129: 0.00 | L129: 625.00 | M129: 62.50
A130: Курага | B130: 0.00 | C130: 0.00 | D130: 0.00 | E130: 0.00 | F130: 0.00 | G130: 0.00 | H130: 0.00 | I130: 0.00 | J130: 0.00 | K130: 0.00 | L130: 0.00 | M130: 0.00
A131: Сухофрукты | B131: 15.30 | C131: 0.00 | D131: 0.00 | E131: 15.30 | F131: 0.00 | G131: 0.00 | H131: 0.00 | I131: 15.30 | J131: 0.00 | K131: 0.00 | L131: 45.90 | M131: 4.59
A132: Урюк | B132: 6.00 | C132: 0.00 | D132: 12.75 | E132: 0.00 | F132: 0.00 | G132: 18.75 | H132: 0.00 | I132: 0.00 | J132: 0.00 | K132: 12.75 | L132: 50.25 | M132: 5.03
A133: повидло фруктовое | B133: 0.00 | C133: 0.00 | D133: 0.00 | E133: 0.00 | F133: 0.00 | G133: 0.00 | H133: 0.00 | I133: 0.00 | J133: 0.00 | K133: 0.00 | L133: 0.00 | M133: 0.00
A134: Шиповник порошок | B134: 0.00 | C134: 0.00 | D134: 0.00 | E134: 2.25 | F134: 0.00 | G134: 0.00 | H134: 0.00 | I134: 0.00 | J134: 2.25 | K134: 0.00 | L134: 4.50 | M134: 0.45
A135: Молоко | B135: 75.00 | C135: 278.28 | D135: 117.00 | E135: 158.50 | F135: 172.20 | G135: 120.60 | H135: 273.28 | I135: 157.40 | J135: 97.00 | K135: 177.20 | L135: 1626.46 | M135: 162.65
A136: Кефир | B136: 0.00 | C136: 0.00 | D136: 0.00 | E136: 0.00 | F136: 114.00 | G136: 0.00 | H136: 0.00 | I136: 0.00 | J136: 0.00 | K136: 114.00 | L136: 228.00 | M136: 22.80
A137: Ряженка | B137: 0.00 | C137: 0.00 | D137: 114.00 | E137: 0.00 | F137: 0.00 | G137: 114.00 | H137: 0.00 | I137: 0.00 | J137: 114.00 | K137: 0.00 | L137: 342.00 | M137: 34.20
A138: Катык | B138: 114.00 | C138: 0.00 | D138: 0.00 | E138: 114.00 | F138: 0.00 | G138: 0.00 | H138: 0.00 | I138: 114.00 | J138: 0.00 | K138: 0.00 | L138: 342.00 | M138: 34.20
A139: Молоко сгущенное | B139: 0.00 | C139: 10.00 | D139: 0.00 | E139: 10.00 | F139: 0.00 | G139: 0.00 | H139: 10.00 | I139: 0.00 | J139: 0.00 | K139: 0.00 | L139: 30.00 | M139: 3.00
A140: Сметана | B140: 5.00 | C140: 3.40 | D140: 5.00 | E140: 17.40 | F140: 8.30 | G140: 0.00 | H140: 10.20 | I140: 5.00 | J140: 8.75 | K140: 0.00 | L140: 63.05 | M140: 6.31
A141: Творог | B141: 0.00 | C141: 85.70 | D141: 0.00 | E141: 94.70 | F141: 0.00 | G141: 0.00 | H141: 121.30 | I141: 0.00 | J141: 73.60 | K141: 0.00 | L141: 375.30 | M141: 37.53
A142: Говядина | B142: 0.00 | C142: 0.00 | D142: 0.00 | E142: 39.20 | F142: 0.00 | G142: 0.00 | H142: 0.00 | I142: 33.80 | J142: 0.00 | K142: 0.00 | L142: 73.00 | M142: 7.30
A143: Фарш из говядины | B143: 34.30 | C143: 11.40 | D143: 59.90 | E143: 0.00 | F143: 11.40 | G143: 47.80 | H143: 0.00 | I143: 0.00 | J143: 50.20 | K143: 29.75 | L143: 244.75 | M143: 24.48
A144: Цыплята | B144: 87.23 | C144: 0.00 | D144: 87.54 | E144: 0.00 | F144: 84.97 | G144: 60.15 | H144: 22.62 | I144: 0.00 | J144: 22.62 | K144: 56.72 | L144: 421.85 | M144: 42.19
A145: Индейка филе | B145: 0.00 | C145: 0.00 | D145: 0.00 | E145: 0.00 | F145: 0.00 | G145: 0.00 | H145: 0.00 | I145: 0.00 | J145: 0.00 | K145: 0.00 | L145: 0.00 | M145: 0.00
A146: куриная грудка | B146: 0.00 | C146: 0.00 | D146: 0.00 | E146: 0.00 | F146: 0.00 | G146: 0.00 | H146: 0.00 | I146: 0.00 | J146: 0.00 | K146: 0.00 | L146: 0.00 | M146: 0.00
A147: Сыр | B147: 0.00 | C147: 5.10 | D147: 0.00 | E147: 5.10 | F147: 14.40 | G147: 5.10 | H147: 0.00 | I147: 5.10 | J147: 0.00 | K147: 5.10 | L147: 39.90 | M147: 3.99
A148: рыба | B148: 0.00 | C148: 49.34 | D148: 0.00 | E148: 0.00 | F148: 0.00 | G148: 0.00 | H148: 49.34 | I148: 0.00 | J148: 0.00 | K148: 0.00 | L148: 98.68 | M148: 9.87
A149: Кофейный напиток | B149: 0.00 | C149: 0.00 | D149: 0.00 | E149: 1.30 | F149: 0.00 | G149: 0.00 | H149: 1.30 | I149: 0.00 | J149: 0.00 | K149: 1.30 | L149: 3.90 | M149: 0.39
A150: Какао-порошок | B150: 0.00 | C150: 1.30 | D150: 0.00 | E150: 0.00 | F150: 1.30 | G150: 0.00 | H150: 0.00 | I150: 1.30 | J150: 0.00 | K150: 0.00 | L150: 3.90 | M150: 0.39
A151: печенье | B151: 0.00 | C151: 0.00 | D151: 0.00 | E151: 0.00 | F151: 0.00 | G151: 0.00 | H151: 0.00 | I151: 0.00 | J151: 20.00 | K151: 0.00 | L151: 20.00 | M151: 2.00
A152: крекер | B152: 0.00 | C152: 10.00 | D152: 0.00 | E152: 0.00 | F152: 0.00 | G152: 0.00 | H152: 10.00 | I152: 0.00 | J152: 0.00 | K152: 0.00 | L152: 20.00 | M152: 2.00
A153: Соль | B153: 3.25 | C153: 1.73 | D153: 4.40 | E153: 2.30 | F153: 3.68 | G153: 3.30 | H153: 3.33 | I153: 3.80 | J153: 3.00 | K153: 3.86 | L153: 32.65 | M153: 3.27
A154: Крахмал | B154: 0.00 | C154: 0.00 | D154: 0.00 | E154: 0.00 | F154: 0.00 | G154: 0.00 | H154: 0.00 | I154: 0.00 | J154: 0.00 | K154: 0.00 | L154: 0.00 | M154: 0.00
A155: Сухари панировочные | B155: 0.00 | C155: 3.75 | D155: 0.00 | E155: 0.00 | F155: 0.00 | G155: 4.00 | H155: 8.95 | I155: 0.00 | J155: 1.70 | K155: 4.00 | L155: 22.40 | M155: 2.24
A156: вафли | B156: 0.00 | C156: 0.00 | D156: 0.00 | E156: 20.00 | F156: 0.00 | G156: 0.00 | H156: 0.00 | I156: 0.00 | J156: 0.00 | K156: 0.00 | L156: 20.00 | M156: 2.00
A157: Крупы, бобовые | B157: 23.00 | C157: 35.85 | D157: 53.10 | E157: 33.00 | F157: 50.28 | G157: 55.20 | H157: 38.05 | I157: 42.70 | J157: 19.00 | K157: 40.60 | L157: 390.78 | M157: 39.08
A158: Овощи разные | B158: 89.69 | C158: 102.24 | D158: 224.88 | E158: 114.51 | F158: 71.20 | G158: 98.80 | H158: 92.19 | I158: 134.61 | J158: 139.00 | K158: 83.43 | L158: 1150.55 | M158: 115.06
A159: Фрукты | B159: 11.40 | C159: 118.10 | D159: 7.70 | E159: 137.79 | F159: 34.00 | G159: 114.00 | H159: 18.77 | I159: 114.00 | J159: 34.00 | K159: 121.70 | L159: 711.46 | M159: 71.15
A160: Фрукты сухие | B160: 21.30 | C160: 0.00 | D160: 12.75 | E160: 15.30 | F160: 0.00 | G160: 18.75 | H160: 0.00 | I160: 15.30 | J160: 0.00 | K160: 12.75 | L160: 96.15 | M160: 9.62
A161: Молочные прод. | B161: 189.00 | C161: 288.28 | D161: 231.00 | E161: 282.50 | F161: 286.20 | G161: 234.60 | H161: 283.28 | I161: 271.40 | J161: 211.00 | K161: 291.20 | L161: 2568.46 | M161: 256.85
A162: Говядина | B162: 34.30 | C162: 11.40 | D162: 59.90 | E162: 39.20 | F162: 11.40 | G162: 47.80 | H162: 0.00 | I162: 33.80 | J162: 50.20 | K162: 29.75 | L162: 317.75 | M162: 31.78
A163: птица | B163: 87.23 | C163: 0.00 | D163: 87.54 | E163: 0.00 | F163: 84.97 | G163: 60.15 | H163: 22.62 | I163: 0.00 | J163: 22.62 | K163: 56.72 | L163: 421.85 | M163: 42.19
A164: Макаронные изделия | B164: 38.50 | C164: 0.00 | D164: 0.00 | E164: 0.00 | F164: 6.00 | G164: 38.50 | H164: 0.00 | I164: 28.00 | J164: 0.00 | K164: 0.00 | L164: 111.00 | M164: 11.10
A165: Хлеб пшеничный | B165: 49.00 | C165: 45.00 | D165: 45.00 | E165: 45.00 | F165: 45.00 | G165: 59.40 | H165: 45.00 | I165: 45.00 | J165: 45.00 | K165: 51.60 | L165: 475.00 | M165: 47.50
A166: Кондитерские изделия | B166: 0.00 | C166: 10.00 | D166: 0.00 | E166: 20.00 | F166: 0.00 | G166: 0.00 | H166: 10.00 | I166: 0.00 | J166: 20.00 | K166: 0.00 | L166: 60.00 | M166: 6.00

Sheet раскл1-3
C1: Меню-раскладка к примерному 10-дневному меню
C2: для организации питания детей в дошкольных образовательных учреждениях
C3: от 1-3 лет
A5: День 1 - ый
A6: Прием пищи | C6: Выход блюда | D6: Кол - во | E6: Кол - во | F6: Пищевые вещества (г) | I6: Энергетическая | J6: Витамин | K6: № рецептуры
A7: Наименование блюд | D7: (в гр ) | E7: (в гр ) | I7: ценность
D8: брутто | E8: нетто | F8: белки | G8: жиры | H8: угл-ды | I8: Ккал | J8: С
B9: ЗАВТРАК
A10: Каша манная молочная с маслом | C10: 150/5 | F10: 7.50 | G10: 7.50 | H10: 18.40 | I10: 171.10 | J10: 0.16 | K10: ТТК №4
B11: Крупа манная | D11: 15.00 | E11: 15.00
B12: Молоко | D12: 75.00 | E12: 75.00
B13: Вода | D13: 57.00 | E13: 57.00
B14: Сахар | D14: 2.00 | E14: 2.00
B15: Соль | D15: 0.80 | E15: 0.80
B16: Масло сливочное | D16: 5.00 | E16: 5.00
A17: Чай с сахаром | C17: 160/4 | F17: 0.05 | G17: 0.01 | H17: 4.42 | I17: 18.00 | J17: 0.02 | K17: № 411 Дели2016
B18: Заварка | D18: 0.2 | E18: 0.2
B19: сахар | D19: 4 | E19: 4
B20: Вода | D20: 160 | E20: 160
A21: Бутерброд с маслом сливочным | C21: 25/5 | F21: 1.9 | G21: 4.4 | H21: 13 | I21: 99 | K21: №1 Дели2010
B22: Батон нарезной | D22: 25 | E22: 25
B23: Масло сливочное | D23: 5 | E23: 5
A24: Итого: | C24: 350 | F24: 9.45 | G24: 11.91 | H24: 35.82 | I24: 288.10 | J24: 0.18
A25: Сок | C25: 125 | D25: 125 | E25: 125 | F25: 0.60 | G25: 0.30 | H25: 13.00 | I25: 57.00 | J25: 5.00 | K25: №399Дели2010
A26: персиковый
A27: Итого: | C27: 125 | F27: 0.60 | G27: 0.30 | H27: 13.00 | I27: 57.00 | J27: 5.00
C28: 474 | F28: 10.05 | G28: 12.21 | H28: 48.82 | I28: 345.10 | J28: 5.18
B29: ОБЕД
A30: Салат из капусты с яблоками | C30: 30 | F30: 0.60 | G30: 1.38 | H30: 3.00 | I30: 26.80 | K30: №7 Партнер 2014
B31: Капуста свежая | D31: 39.75 | E31: 31.8
B32: масса стертой капусты | E32: 20
B33: Яблоки | D33: 11.4 | E33: 8.4
B34: Сахар | D34: 0.6 | E34: 0.6
B35: Масло растительное | D35: 0.9 | E35: 0.9
B36: соль | D36: 0.3 | E36: 0.3
A37: Рассольник ленинградский с курицей, со сметаной | C37: 150/10/5 | F37: 4 | G37: 6 | H37: 6.3 | I37: 93 | J37: 4.03 | K37: №82 Дели 2016
B38: цыплята | D38: 22.62 | E38: 14.7
B39: Картофель | D39: 65 | E39: 45
B40: Крупа перловая | D40: 6 | E40: 6
B41: Морковь | D41: 7.5 | E41: 6
B42: Лук репчатый | D42: 3.57 | E42: 3
B43: Масло растительное | D43: 2 | E43: 2
B44: Огурцы соленые | D44: 16 | E44: 9
B45: Сметана | D45: 5 | E45: 5
B46: Соль | D46: 0.8 | E46: 0.8
B47: Вода | D47: 114 | E47: 114
A48: Тефтели из говядины с соусом томатным | C48: 50/5 | F48: 4.4 | G48: 4.6 | H48: 3.5 | I48: 73 | J48: 0.32 | K48: ТТК № 1152 от 09.10.2020 и №364 С-Петербург 2008
B49: фарш из говядины | D49: 34.3 | E49: 34.3
B50: Хлеб пшеничный 1с | D50: 4 | E50: 4
B51: Вода | D51: 4 | E51: 4
B52: Лук репчатый | D52: 10.2 | E52: 8.6
B53: Крупа манная | D53: 2 | E53: 2
B54: Соль | D54: 0.3 | E54: 0.3
B55: масса полуфабриката | E55: 53
B56: Масло растительное | D56: 1 | E56: 1
B57: соус томатный | E57: 5.0
B58: вода | D58: 4.5 | E58: 4.5
B59: Масло растительное | D59: 0.2 | E59: 0.2
B60: Мука пшеничная | D60: 0.2 | E60: 0.2
B61: морковь | D61: 0.4 | E61: 0.3
B62: Лук репчатый | D62: 0.1 | E62: 0.1
B63: Томат-паста | D63: 0.5 | E63: 0.5
B64: Масло растительное | D64: 0.1 | E64: 0.1
B65: соль | D65: 0.1 | E65: 0.1
B66: сахар | D66: 0.1 | E66: 0.1
A67: Макароны отварные | C67: 110 | F67: 4.10 | G67: 3.00 | H67: 25.00 | I67: 143.40 | K67: №218 Дели 2016
B68: макаронные изделия | D68: 38.5 | E68: 38.5
B69: Масло сливочное | D69: 2.2 | E69: 2.2
B70: Соль | D70: 0.4 | E70: 0.4
A71: Компот из сухофруктов | C71: 150 | F71: 0.60 | G71: 0.00 | H71: 15.00 | I71: 62.50 | J71: 0.09 | K71: №394, Дели 2016
B72: сухофрукты | D72: 15.3 | E72: 15
B73: вода | D73: 150 | E73: 150
B74: Сахар | D74: 4 | E74: 4
A75: Хлеб сельский | C75: 30 | D75: 30 | E75: 30 | F75: 1.5 | G75: 0.3 | H75: 14.3 | I75: 66
A76: Итого: | C76: 540.00 | F76: 15.20 | G76: 15.28 | H76: 67.10 | I76: 464.70 | J76: 4.44
B77: ПОЛДНИК
A78: Булочка Домашняя | C78: 40 | F78: 3.90 | G78: 3.50 | H78: 22.40 | I78: 137.00 | J78: 0.00 | K78: №258 Партнер г. Уфа 2014
B79: Мука пшеничная | D79: 27.00 | E79: 27.00
B80: Сахар | D80: 5.60 | E80: 5.60
B81: вода | D81: 11.20 | E81: 11.20
B82: Масло растительное | D82: 5.60 | E82: 5.60
B83: Дрожжи сухие | D83: 0.16 | E83: 0.16
B84: Соль | D84: 0.20 | E84: 0.20
B85: Яйцо | D85: 0.80 | E85: 0.80
B86: Масса полуфабриката | E86: 48.40
B87: Масло растительное | D87: 0.10 | E87: 0.10
A88: Катык | C88: 110 | F88: 3.00 | G88: 2.70 | H88: 4.50 | I88: 54.30 | J88: 0.55 | K88: №401Дели2010
B89: катык | D89: 114 | E89: 110
A90: Рагу с курицей | C90: 30/100 | F90: 4.60 | G90: 8.20 | H90: 13.00 | I90: 144.00 | J90: 16.50 | K90: ТТК №63
B91: цыплята | D91: 64.61 | E91: 42.00
B92: Картофель | D92: 105.00 | E92: 73.30
B93: Морковь | D93: 11.67 | E93: 9.33
B94: Соль | D94: 0.40 | E94: 0.40
B95: вода | D95: 26.70 | E95: 26.70
B96: Масло растительное | D96: 3.00 | E96: 3.00
B97: Мука пшеничная | D97: 1.70 | E97: 1.70
B98: сахар | D98: 0.30 | E98: 0.30
A99: Чай фруктовый | C99: 150/6 | F99: 0.1 | G99: 0.07 | H99: 13.5 | I99: 55 | K99: ТТК №56
B100: Заварка | D100: 0.2 | E100: 0.2
B101: урюк | D101: 6 | E101: 6
B102: сахар | D102: 6 | E102: 6
B103: Вода | D103: 150 | E103: 150
A104: Хлеб пшеничный 1с | C104: 20 | D104: 20 | E104: 20 | F104: 1.6 | G104: 0.2 | H104: 9.8 | I104: 47 | J104: 0
A105: Итого: | C105: 456.00 | F105: 13.20 | G105: 14.67 | H105: 63.20 | I105: 437.30 | J105: 17.05
A106: ВСЕГО: | C106: 1471.00 | F106: 38.45 | G106: 42.16 | H106: 179.12 | I106: 1247.10 | J106: 26.67
A108: День 2- ой
A109: Прием пищи | C109: Выход блюда | D109: Кол - во | E109: Кол - во | F109: Пищевые вещества (г) | I109: Энергетическая | J109: Витамин | K109: № рецептуры
A110: Наименование блюд | D110: (в гр ) | E110: (в гр ) | I110: ценность
D111: брутто | E111: нетто | F111: белки | G111: жиры | H111: угл-ды | I111: Ккал | J111: С
B112: ЗАВТРАК
A113: Каша "Дружба" молочная с маслом | C113: 150/5 | F113: 3.90 | G113: 4.38 | H113: 19.00 | I113: 131.00 | J113: 0.21 | K113: ТТК №7
B114: Крупа рисовая | D114: 11 | E114: 11
B115: Крупа пшенная | D115: 8 | E115: 8
B116: Молоко | D116: 65 | E116: 65
B117: Вода | D117: 65 | E117: 65
B118: Сахар | D118: 0.75 | E118: 0.75
B119: Соль | D119: 0.5 | E119: 0.5
B120: Масло сливочное | D120: 5 | E120: 5
A121: Какао с молоком | C121: 160 | F121: 2.00 | G121: 2.20 | H121: 11.30 | I121: 73.30 | J121: 0.32 | K121: №272 Парнер г. Уфа 2014
B122: Какао-порошок | D122: 1.3 | E122: 1.3
B123: Сахар | D123: 7 | E123: 7
B124: Молоко | D124: 80 | E124: 80
B125: вода | D125: 90 | E125: 90
A126: Бутерброд с сыром, маслом | C126: 25/5/3 | F126: 3.50 | G126: 5.95 | H126: 12.90 | I126: 119.60 | J126: 0.04 | K126: №3Дели2010
B127: Батон нарезной | D127: 25 | E127: 25
B128: Сыр | D128: 5.1 | E128: 5
B129: Масло сливочное | D129: 3 | E129: 3
A130: Итого: | C130: 350 | F130: 9.40 | G130: 12.33 | H130: 43.20 | I130: 323.90 | J130: 0.57
A131: Фрукты свежие | C131: 100 | D131: 114 | E131: 100 | F131: 1.00 | G131: 0.00 | H131: 8.10 | I131: 36.00 | J131: 60.00 | K131: № 368 Дели 2010
A132: апельсин
A133: Итого: | C133: 100 | F133: 1.00 | G133: 0.00 | H133: 8.10 | I133: 36.00 | J133: 60.00
C134: 450 | F134: 10.40 | G134: 12.33 | H134: 51.30 | I134: 359.90 | J134: 60.57
B135: ОБЕД
A136: Салат из свеклы | C136: 30 | F136: 0.36 | G136: 0.96 | H136: 1.80 | I136: 17.30 | J136: 0.60 | K136: №34, Дели2016
B137: Свекла | D137: 37.91 | E137: 28.50
B138: Масло растительное | D138: 1.50 | E138: 1.50
A139: Суп картофельный с клецками с мясными фрикадельками | C139: 150/10 | F139: 3.00 | G139: 6.40 | H139: 23.60 | I139: 164.00 | K139: №38 Пермь2001
B140: Фарш из говядины | D140: 11.4 | E140: 11.4
B141: Лук репчатый | D141: 1.19 | E141: 1
B142: Яйцо | D142: 1 | E142: 1
B143: Вода для фарша | D143: 1.14 | E143: 1.14
B144: Масса полуфабриката | E144: 13.4
B145: Картофель | D145: 43 | E145: 30
B146: Лук репчатый | D146: 7.14 | E146: 6
B147: Морковь | D147: 7.5 | E147: 6
B148: Масло растительное | D148: 1.2 | E148: 1.2
B149: соль | D149: 0,7 | E149: 0.7
B150: вода | D150: 114.00 | E150: 114.00
B151: клецки | E151: 20.00
B152: Мука пшеничная | D152: 6.60 | E152: 6.60
B153: Яйцо | D153: 1.70 | E153: 1.70
B154: Масло сливочное | D154: 0.80 | E154: 0.80
B155: вода | D155: 10.00 | E155: 10.00
B156: масса теста | E156: 18.70
A157: Биточки рубленые из рыбы | C157: 50 | F157: 6.50 | G157: 4.86 | H157: 10.41 | I157: 111.40 | K157: ТТК №3 Д
B158: рыба | D158: 49.34 | E158: 37.50
B159: Яйцо | D159: 7.50 | E159: 7.50
B160: крупа манная | D160: 1.25 | E160: 1.25
B161: Лук репчатый | D161: 11.00 | E161: 9.25
B162: вода | D162: 3.75 | E162: 3.75
B163: Соль | D163: 0.33 | E163: 0.33
B164: сухари панировочные | D164: 3.75 | E164: 3.75
B165: Масло растительное | D165: 1.25 | E165: 1.25
B166: Сахар | D166: 0.14 | E166: 0.14
B167: Масса полуфабриката | E167: 60.00
A168: Пюре Картофельное | C168: 110 | F168: 2.20 | G168: 3.30 | H168: 15.40 | I168: 100.10 | J168: 7.64 | K168: №137 Партнер 2014
B169: Картофель | D169: 135.00 | E169: 94.43
B170: Молоко | D170: 17.38 | E170: 16.50
B171: Масло сливочное | D171: 3.00 | E171: 3.00
B172: Соль | D172: 0.90 | E172: 0.90
A173: Кисель | C173: 150 | H173: 8.34 | I173: 33.34 | K173: №284Партнер2014
B174: Кисель-концентрат | D174: 17.50 | E174: 17.50
B175: Сахар | D175: 4.00 | E175: 4.00
B176: вода | D176: 150.00 | E176: 150.00
A177: Хлеб сельский | C177: 30 | D177: 30 | E177: 30 | F177: 1.5 | G177: 0.3 | H177: 14.3 | I177: 66
A178: Итого: | C178: 530.00 | F178: 13.56 | G178: 15.82 | H178: 73.85 | I178: 492.14 | J178: 8.24
B179: ПОЛДНИК
A180: Кондитерские изделия | C180: 10 | F180: 1.30 | G180: 3.20 | H180: 8.50 | I180: 68.00
A181: крекер | D181: 10 | E181: 10
A182: Молоко кипяченое | C182: 110 | F182: 2.50 | G182: 2.75 | H182: 4.00 | I182: 51.00 | J182: 0.43 | K182: №419 Дели2016
B183: молоко | D183: 115.90 | E183: 110.00
A184: Салат из моркови | C184: 30 | F184: 0.60 | G184: 0.05 | H184: 3.00 | I184: 14.00 | J184: 1.50 | K184: №42 Дели2016г
B185: Морковь | D185: 37.5 | E185: 30
B186: Сахар | D186: 0.3 | E186: 0.3
A187: Пудинг из творога с рисом с молоком сгущенным | C187: 130 | F187: 6.00 | G187: 8.50 | H187: 24.00 | I187: 196.00 | J187: 0.23 | K187: № 250 Дели 2016
B188: Творог | D188: 85.7 | E188: 84.5
B189: Крупа рисовая | D189: 15.6 | E189: 15.6
B190: Сахар | D190: 7.8 | E190: 7.8
B191: Яйцо | D191: 6.76 | E191: 6.76
B192: Масло сливочное | D192: 3.3 | E192: 3.3
B193: Сметана | D193: 3.4 | E193: 3.4
B194: Масса полуфабриката | E194: 133
B195: молоко сгущенное | D195: 10 | E195: 10
A196: Чай с сахаром и лимоном | C196: 150/4/4 | F196: 0.09 | G196: 0.01 | H196: 8.50 | I196: 34.50 | J196: 1.59 | K196: №393Дели2010
B197: Заварка | D197: 0.3 | E197: 0.3
B198: Сахар | D198: 4 | E198: 4
B199: лимон | D199: 4.1 | E199: 4
B200: Вода | D200: 150.0 | E200: 150.0
A201: Хлеб пшеничный 1с | C201: 20 | D201: 20 | E201: 20 | F201: 1.6 | G201: 0.2 | H201: 9.8 | I201: 47 | J201: 0
A202: Итого: | C202: 458 | F202: 12.09 | G202: 14.71 | H202: 57.80 | I202: 410.50 | J202: 3.75
... 750 more rows

Sheet свод 3-7
B1: Расход продуктов ДОУ
D2: от 3 до 7 лет | K2: НЕТТО
A3: Наименов. прод. | B3: 1 | C3: 2 | D3: 3 | E3: 4 | F3: 5 | G3: 6 | H3: 7 | I3: 8 | J3: 9 | K3: 10 | L3: Кол-во | M3: Среднее
A5: Сахар | B5: 28.58 | C5: 28.70 | D5: 24.55 | E5: 32.10 | F5: 21.18 | G5: 26.00 | H5: 32.00 | I5: 25.00 | J5: 31.50 | K5: 21.40 | L5: 271.01 | M5: 27.10
A6: Заварка | B6: 0.60 | C6: 0.35 | D6: 0.60 | E6: 0.00 | F6: 0.30 | G6: 0.60 | H6: 0.35 | I6: 0.30 | J6: 0.30 | K6: 0.30 | L6: 3.70 | M6: 0.37
A7: Яйцо | B7: 1.00 | C7: 21.88 | D7: 1.50 | E7: 7.14 | F7: 107.90 | G7: 8.50 | H7: 16.50 | I7: 49.08 | J7: 10.50 | K7: 116.00 | L7: 340.00 | M7: 34.00
A8: Дрожжи сухие | B8: 0.20 | C8: 0.00 | D8: 0.20 | E8: 0.00 | F8: 0.20 | G8: 0.38 | H8: 0.00 | I8: 0.25 | J8: 0.00 | K8: 0.30 | L8: 1.53 | M8: 0.15
A9: Батон нарезной | B9: 30.00 | C9: 30.00 | D9: 30.00 | E9: 30.00 | F9: 30.00 | G9: 30.00 | H9: 30.00 | I9: 30.00 | J9: 30.00 | K9: 30.00 | L9: 300.00 | M9: 30.00
A10: Хлеб пшеничный 1с | B10: 29.00 | C10: 23.00 | D10: 23.00 | E10: 23.00 | F10: 23.00 | G10: 35.00 | H10: 23.00 | I10: 23.00 | J10: 23.00 | K10: 32.00 | L10: 257.00 | M10: 25.70
A11: Хлеб сельский | B11: 37.50 | C11: 37.50 | D11: 37.50 | E11: 37.50 | F11: 37.50 | G11: 37.50 | H11: 37.50 | I11: 37.50 | J11: 37.50 | K11: 37.50 | L11: 375.00 | M11: 37.50
A12: Мука пшеничная | B12: 36.40 | C12: 8.30 | D12: 34.50 | E12: 0.00 | F12: 22.70 | G12: 30.00 | H12: 0.00 | I12: 35.00 | J12: 41.80 | K12: 39.30 | L12: 248.00 | M12: 24.80
A13: Кисель-концентрат | B13: 0.00 | C13: 21.60 | D13: 0.00 | E13: 0.00 | F13: 0.00 | G13: 0.00 | H13: 21.60 | I13: 0.00 | J13: 0.00 | K13: 0.00 | L13: 43.20 | M13: 4.32
A14: Макаронные изделия | B14: 45.50 | C14: 0.00 | D14: 0.00 | E14: 0.00 | F14: 0.00 | G14: 45.50 | H14: 0.00 | I14: 35.00 | J14: 0.00 | K14: 0.00 | L14: 126.00 | M14: 12.60
A15: Вермишель | B15: 0.00 | C15: 0.00 | D15: 0.00 | E15: 0.00 | F15: 8.00 | G15: 0.00 | H15: 0.00 | I15: 0.00 | J15: 0.00 | K15: 0.00 | L15: 8.00 | M15: 0.80
A16: Крупа рисовая | B16: 0.00 | C16: 33.00 | D16: 8.20 | E16: 0.00 | F16: 38.50 | G16: 0.00 | H16: 0.00 | I16: 45.60 | J16: 0.00 | K16: 25.00 | L16: 150.30 | M16: 15.03
A17: Крупа кукурузная | B17: 0.00 | C17: 0.00 | D17: 0.00 | E17: 0.00 | F17: 0.00 | G17: 0.00 | H17: 0.00 | I17: 0.00 | J17: 0.00 | K17: 0.00 | L17: 0.00 | M17: 0.00
A18: Крупа манная | B18: 23.00 | C18: 1.75 | D18: 0.00 | E18: 11.40 | F18: 0.00 | G18: 0.00 | H18: 10.75 | I18: 20.00 | J18: 0.00 | K18: 0.00 | L18: 66.90 | M18: 6.69
A19: Горох | B19: 0.00 | C19: 0.00 | D19: 0.00 | E19: 0.00 | F19: 0.00 | G19: 20.00 | H19: 0.00 | I19: 0.00 | J19: 0.00 | K19: 0.00 | L19: 20.00 | M19: 2.00
A20: Крупа пшенная | B20: 0.00 | C20: 11.00 | D20: 0.00 | E20: 30.00 | F20: 0.00 | G20: 0.00 | H20: 30.00 | I20: 0.00 | J20: 0.00 | K20: 0.00 | L20: 71.00 | M20: 7.10
A21: Крупа ячневая | B21: 0.00 | C21: 0.00 | D21: 0.00 | E21: 0.00 | F21: 0.00 | G21: 0.00 | H21: 0.00 | I21: 0.00 | J21: 0.00 | K21: 0.00 | L21: 0.00 | M21: 0.00
A22: Полба | B22: 0.00 | C22: 0.00 | D22: 0.00 | E22: 0.00 | F22: 25.00 | G22: 0.00 | H22: 0.00 | I22: 0.00 | J22: 25.00 | K22: 0.00 | L22: 50.00 | M22: 5.00
A23: Крупа перловая | B23: 8.00 | C23: 0.00 | D23: 0.00 | E23: 0.00 | F23: 0.00 | G23: 0.00 | H23: 8.00 | I23: 0.00 | J23: 0.00 | K23: 25.50 | L23: 41.50 | M23: 4.15
A24: Крупа геркулесовая | B24: 0.00 | C24: 0.00 | D24: 25.00 | E24: 0.00 | F24: 0.00 | G24: 25.00 | H24: 0.00 | I24: 0.00 | J24: 0.00 | K24: 0.00 | L24: 50.00 | M24: 5.00
A25: Крупа пшеничная | B25: 0.00 | C25: 0.00 | D25: 0.00 | E25: 0.00 | F25: 0.00 | G25: 0.00 | H25: 0.00 | I25: 0.00 | J25: 0.00 | K25: 0.00 | L25: 0.00 | M25: 0.00
A26: Крупа гречневая | B26: 0.00 | C26: 0.00 | D26: 32.50 | E26: 0.00 | F26: 0.00 | G26: 25.00 | H26: 0.00 | I26: 0.00 | J26: 0.00 | K26: 0.00 | L26: 57.50 | M26: 5.75
A27: Картофель | B27: 148.00 | C27: 151.60 | D27: 34.50 | E27: 144.60 | F27: 60.00 | G27: 40.00 | H27: 171.60 | I27: 16.00 | J27: 167.00 | K27: 18.80 | L27: 952.10 | M27: 95.21
A28: Морковь | B28: 19.80 | C28: 58.00 | D28: 25.30 | E28: 34.60 | F28: 27.30 | G28: 59.02 | H28: 39.60 | I28: 18.40 | J28: 58.00 | K28: 37.50 | L28: 377.52 | M28: 37.75
A29: Лук репчатый | B29: 16.20 | C29: 22.50 | D29: 26.40 | E29: 23.30 | F29: 16.50 | G29: 25.43 | H29: 17.00 | I29: 16.00 | J29: 18.30 | K29: 24.15 | L29: 205.78 | M29: 20.58
A30: Свекла | B30: 0.00 | C30: 47.50 | D30: 51.00 | E30: 33.30 | F30: 0.00 | G30: 28.40 | H30: 0.00 | I30: 32.00 | J30: 47.50 | K30: 0.00 | L30: 239.70 | M30: 23.97
A31: Капуста свежая | B31: 53.00 | C31: 0.00 | D31: 132.50 | E31: 40.00 | F31: 40.50 | G31: 0.00 | H31: 40.50 | I31: 16.00 | J31: 40.00 | K31: 35.00 | L31: 397.50 | M31: 39.75
A32: Икра кабачковая | B32: 0.00 | C32: 0.00 | D32: 0.00 | E32: 0.00 | F32: 0.00 | G32: 0.00 | H32: 0.00 | I32: 0.00 | J32: 0.00 | K32: 0.00 | L32: 0.00 | M32: 0.00
A33: Огурцы соленые | B33: 12.00 | C33: 0.00 | D33: 0.00 | E33: 0.00 | F33: 0.00 | G33: 0.00 | H33: 12.00 | I33: 50.00 | J33: 0.00 | K33: 0.00 | L33: 74.00 | M33: 7.40
A34: Помидоры свежие | B34: 0.00 | C34: 0.00 | D34: 0.00 | E34: 0.00 | F34: 0.00 | G34: 0.00 | H34: 0.00 | I34: 0.00 | J34: 0.00 | K34: 0.00 | L34: 0.00 | M34: 0.00
A35: Огурцы свежие | B35: 0.00 | C35: 0.00 | D35: 0.00 | E35: 0.00 | F35: 0.00 | G35: 0.00 | H35: 0.00 | I35: 0.00 | J35: 0.00 | K35: 0.00 | L35: 0.00 | M35: 0.00
A36: перец | B36: 0.00 | C36: 0.00 | D36: 0.00 | E36: 0.00 | F36: 0.00 | G36: 0.00 | H36: 0.00 | I36: 0.00 | J36: 0.00 | K36: 0.00 | L36: 0.00 | M36: 0.00
A37: Томат-паста | B37: 1.00 | C37: 0.00 | D37: 4.00 | E37: 0.00 | F37: 0.00 | G37: 0.00 | H37: 0.00 | I37: 1.00 | J37: 0.00 | K37: 0.00 | L37: 6.00 | M37: 0.60
A38: Масло сливочное | B38: 12.60 | C38: 15.90 | D38: 20.50 | E38: 8.00 | F38: 15.20 | G38: 17.10 | H38: 19.00 | I38: 13.00 | J38: 30.00 | K38: 18.00 | L38: 169.30 | M38: 16.93
A39: Масло растительное | B39: 18.30 | C39: 5.70 | D39: 18.40 | E39: 14.10 | F39: 12.28 | G39: 14.30 | H39: 9.00 | I39: 9.16 | J39: 6.50 | K39: 5.70 | L39: 113.44 | M39: 11.34
A40: Фрукты свежие | B40: 0.00 | C40: 100.00 | D40: 0.00 | E40: 100.00 | F40: 0.00 | G40: 100.00 | H40: 0.00 | I40: 100.00 | J40: 0.00 | K40: 100.00 | L40: 500.00 | M40: 50.00
A41: Яблоки | B41: 14.00 | C41: 0.00 | D41: 11.25 | E41: 34.80 | F41: 36.00 | G41: 0.00 | H41: 21.50 | I41: 0.00 | J41: 36.00 | K41: 11.25 | L41: 164.80 | M41: 16.48
A42: крыжовник зам. | B42: 0.00 | C42: 0.00 | D42: 0.00 | E42: 0.00 | F42: 0.00 | G42: 0.00 | H42: 0.00 | I42: 0.00 | J42: 0.00 | K42: 0.00 | L42: 0.00 | M42: 0.00
A43: Лимон | B43: 0.00 | C43: 5.00 | D43: 0.00 | E43: 0.00 | F43: 0.00 | G43: 0.00 | H43: 5.00 | I43: 0.00 | J43: 0.00 | K43: 0.00 | L43: 10.00 | M43: 1.00
A44: Ягодная смесь зам. | B44: 0.00 | C44: 0.00 | D44: 0.00 | E44: 0.00 | F44: 0.00 | G44: 0.00 | H44: 0.00 | I44: 0.00 | J44: 0.00 | K44: 0.00 | L44: 0.00 | M44: 0.00
A45: Сок | B45: 125.00 | C45: 0.00 | D45: 125.00 | E45: 0.00 | F45: 125.00 | G45: 0.00 | H45: 125.00 | I45: 0.00 | J45: 125.00 | K45: 0.00 | L45: 625.00 | M45: 62.50
A46: Курага | B46: 0.00 | C46: 0.00 | D46: 0.00 | E46: 0.00 | F46: 0.00 | G46: 0.00 | H46: 0.00 | I46: 0.00 | J46: 0.00 | K46: 0.00 | L46: 0.00 | M46: 0.00
A47: Сухофрукты | B47: 18.00 | C47: 0.00 | D47: 0.00 | E47: 18.00 | F47: 0.00 | G47: 0.00 | H47: 0.00 | I47: 18.00 | J47: 0.00 | K47: 0.00 | L47: 54.00 | M47: 5.40
A48: Урюк | B48: 7.20 | C48: 0.00 | D48: 15.00 | E48: 0.00 | F48: 0.00 | G48: 22.20 | H48: 0.00 | I48: 0.00 | J48: 0.00 | K48: 15.00 | L48: 59.40 | M48: 5.94
A49: повидло фруктовое | B49: 0.00 | C49: 0.00 | D49: 0.00 | E49: 0.00 | F49: 0.00 | G49: 0.00 | H49: 0.00 | I49: 0.00 | J49: 0.00 | K49: 0.00 | L49: 0.00 | M49: 0.00
A50: Шиповник порошок | B50: 0.00 | C50: 0.00 | D50: 0.00 | E50: 3.00 | F50: 0.00 | G50: 0.00 | H50: 0.00 | I50: 0.00 | J50: 3.00 | K50: 0.00 | L50: 6.00 | M50: 0.60
A51: Молоко | B51: 100.00 | C51: 315.50 | D51: 148.00 | E51: 199.40 | F51: 218.00 | G51: 152.50 | H51: 317.50 | I51: 193.00 | J51: 136.00 | K51: 218.00 | L51: 1997.90 | M51: 199.79
A52: Кефир | B52: 0.00 | C52: 0.00 | D52: 0.00 | E52: 0.00 | F52: 120.00 | G52: 0.00 | H52: 0.00 | I52: 0.00 | J52: 0.00 | K52: 120.00 | L52: 240.00 | M52: 24.00
A53: Ряженка | B53: 0.00 | C53: 0.00 | D53: 120.00 | E53: 0.00 | F53: 0.00 | G53: 120.00 | H53: 0.00 | I53: 0.00 | J53: 120.00 | K53: 0.00 | L53: 360.00 | M53: 36.00
A54: Катык | B54: 120.00 | C54: 0.00 | D54: 0.00 | E54: 120.00 | F54: 0.00 | G54: 0.00 | H54: 0.00 | I54: 120.00 | J54: 0.00 | K54: 0.00 | L54: 360.00 | M54: 36.00
A55: Молоко сгущенное | B55: 0.00 | C55: 20.00 | D55: 0.00 | E55: 20.00 | F55: 0.00 | G55: 0.00 | H55: 20.00 | I55: 0.00 | J55: 0.00 | K55: 0.00 | L55: 60.00 | M55: 6.00
A56: Сметана | B56: 5.00 | C56: 3.90 | D56: 6.00 | E56: 19.28 | F56: 10.29 | G56: 0.00 | H56: 11.00 | I56: 5.00 | J56: 10.00 | K56: 0.00 | L56: 70.47 | M56: 7.05
A57: Творог | B57: 0.00 | C57: 97.50 | D57: 0.00 | E57: 107.14 | F57: 0.00 | G57: 0.00 | H57: 138.00 | I57: 0.00 | J57: 83.75 | K57: 0.00 | L57: 426.39 | M57: 42.64
A58: Говядина | B58: 0.00 | C58: 0.00 | D58: 0.00 | E58: 47.00 | F58: 0.00 | G58: 0.00 | H58: 0.00 | I58: 52.00 | J58: 0.00 | K58: 0.00 | L58: 99.00 | M58: 9.90
A59: Фарш из говядины | B59: 48.00 | C59: 17.10 | D59: 77.80 | E59: 0.00 | F59: 17.10 | G59: 60.10 | H59: 0.00 | I59: 0.00 | J59: 58.00 | K59: 41.70 | L59: 319.80 | M59: 31.98
A60: Цыплята | B60: 78.00 | C60: 0.00 | D60: 64.00 | E60: 0.00 | F60: 68.00 | G60: 55.00 | H60: 22.00 | I60: 0.00 | J60: 22.00 | K60: 53.03 | L60: 362.03 | M60: 36.20
A61: индейка филе | B61: 0.00 | C61: 0.00 | D61: 0.00 | E61: 0.00 | F61: 0.00 | G61: 0.00 | H61: 0.00 | I61: 0.00 | J61: 0.00 | K61: 0.00 | L61: 0.00 | M61: 0.00
A62: куриная грудка | B62: 0.00 | C62: 0.00 | D62: 0.00 | E62: 0.00 | F62: 0.00 | G62: 0.00 | H62: 0.00 | I62: 0.00 | J62: 0.00 | K62: 0.00 | L62: 0.00 | M62: 0.00
A63: Сыр | B63: 0.00 | C63: 7.00 | D63: 0.00 | E63: 7.00 | F63: 17.70 | G63: 7.00 | H63: 0.00 | I63: 7.00 | J63: 0.00 | K63: 7.00 | L63: 52.70 | M63: 5.27
A64: рыба | B64: 0.00 | C64: 52.50 | D64: 0.00 | E64: 0.00 | F64: 0.00 | G64: 0.00 | H64: 52.50 | I64: 0.00 | J64: 0.00 | K64: 0.00 | L64: 105.00 | M64: 10.50
A65: Кофейный напиток | B65: 0.00 | C65: 0.00 | D65: 0.00 | E65: 1.50 | F65: 0.00 | G65: 0.00 | H65: 1.50 | I65: 0.00 | J65: 0.00 | K65: 1.50 | L65: 4.50 | M65: 0.45
A66: Какао-порошок | B66: 0.00 | C66: 1.50 | D66: 0.00 | E66: 0.00 | F66: 1.50 | G66: 0.00 | H66: 0.00 | I66: 1.50 | J66: 0.00 | K66: 0.00 | L66: 4.50 | M66: 0.45
A67: печенье | B67: 0.00 | C67: 0.00 | D67: 0.00 | E67: 0.00 | F67: 0.00 | G67: 0.00 | H67: 0.00 | I67: 0.00 | J67: 20.00 | K67: 0.00 | L67: 20.00 | M67: 2.00
A68: крекер | B68: 0.00 | C68: 10.00 | D68: 0.00 | E68: 0.00 | F68: 0.00 | G68: 0.00 | H68: 10.00 | I68: 0.00 | J68: 0.00 | K68: 0.00 | L68: 20.00 | M68: 2.00
A69: Соль | B69: 5.20 | C69: 3.50 | D69: 5.30 | E69: 4.00 | F69: 4.20 | G69: 4.60 | H69: 4.20 | I69: 5.10 | J69: 4.50 | K69: 4.80 | L69: 45.40 | M69: 4.54
A70: Крахмал | B70: 0.00 | C70: 0.00 | D70: 0.00 | E70: 0.00 | F70: 0.00 | G70: 0.00 | H70: 0.00 | I70: 0.00 | J70: 0.00 | K70: 0.00 | L70: 0.00 | M70: 0.00
A71: Сухари панировочные | B71: 0.00 | C71: 5.00 | D71: 0.00 | E71: 0.00 | F71: 0.00 | G71: 6.00 | H71: 11.00 | I71: 0.00 | J71: 2.00 | K71: 5.80 | L71: 29.80 | M71: 2.98
A72: вафли | B72: 0.00 | C72: 0.00 | D72: 0.00 | E72: 20.00 | F72: 0.00 | G72: 0.00 | H72: 0.00 | I72: 0.00 | J72: 0.00 | K72: 0.00 | L72: 20.00 | M72: 2.00
A73: Крупы, бобовые | B73: 31.00 | C73: 45.75 | D73: 65.70 | E73: 41.40 | F73: 63.50 | G73: 70.00 | H73: 48.75 | I73: 65.60 | J73: 25.00 | K73: 50.50 | L73: 507.20 | M73: 50.72
A74: Овощи разные | B74: 102.00 | C74: 128.00 | D74: 239.20 | E74: 131.20 | F74: 84.30 | G74: 112.85 | H74: 109.10 | I74: 133.40 | J74: 163.80 | K74: 96.65 | L74: 1300.50 | M74: 130.05
A75: Фрукты | B75: 14.00 | C75: 105.00 | D75: 11.25 | E75: 134.80 | F75: 36.00 | G75: 100.00 | H75: 26.50 | I75: 100.00 | J75: 36.00 | K75: 111.25 | L75: 674.80 | M75: 67.48
A76: Фрукты сухие | B76: 25.20 | C76: 0.00 | D76: 15.00 | E76: 21.00 | F76: 0.00 | G76: 22.20 | H76: 0.00 | I76: 18.00 | J76: 3.00 | K76: 15.00 | L76: 119.40 | M76: 11.94
A77: Молочные прод. | B77: 220.00 | C77: 335.50 | D77: 268.00 | E77: 339.40 | F77: 338.00 | G77: 272.50 | H77: 337.50 | I77: 313.00 | J77: 256.00 | K77: 338.00 | L77: 3017.90 | M77: 301.79
A78: Говядина | B78: 48.00 | C78: 17.10 | D78: 77.80 | E78: 47.00 | F78: 17.10 | G78: 60.10 | H78: 0.00 | I78: 52.00 | J78: 58.00 | K78: 41.70 | L78: 418.80 | M78: 41.88
A79: Птица | B79: 78.00 | C79: 0.00 | D79: 64.00 | E79: 0.00 | F79: 68.00 | G79: 55.00 | H79: 22.00 | I79: 0.00 | J79: 22.00 | K79: 53.03 | L79: 362.03 | M79: 36.20
A80: Макаронные изделия | B80: 45.50 | C80: 0.00 | D80: 0.00 | E80: 0.00 | F80: 8.00 | G80: 45.50 | H80: 0.00 | I80: 35.00 | J80: 0.00 | K80: 0.00 | L80: 134.00 | M80: 13.40
A81: Хлеб пшеничный | B81: 59.00 | C81: 53.00 | D81: 53.00 | E81: 53.00 | F81: 53.00 | G81: 65.00 | H81: 53.00 | I81: 53.00 | J81: 53.00 | K81: 62.00 | L81: 557.00 | M81: 55.70
A82: Кондитерские изделия | B82: 0.00 | C82: 10.00 | D82: 0.00 | E82: 20.00 | F82: 0.00 | G82: 0.00 | H82: 10.00 | I82: 0.00 | J82: 20.00 | K82: 0.00 | L82: 60.00 | M82: 6.00
A83: Примечание: расход хлеба пшеничного с учетом расхода сухарей панировочных
B84: Расход продуктов ДОУ
D85: от 3 до 7 лет | K85: брутто
A87: Наименов. прод. | B87: 1 | C87: 2 | D87: 3 | E87: 4 | F87: 5 | G87: 6 | H87: 7 | I87: 8 | J87: 9 | K87: 10 | L87: Кол-во | M87: Среднее
A89: Сахар | B89: 28.58 | C89: 28.70 | D89: 24.55 | E89: 32.10 | F89: 21.18 | G89: 26.00 | H89: 32.00 | I89: 25.00 | J89: 31.50 | K89: 21.40 | L89: 271.01 | M89: 27.10
A90: Заварка | B90: 0.60 | C90: 0.35 | D90: 0.60 | E90: 0.00 | F90: 0.30 | G90: 0.60 | H90: 0.35 | I90: 0.30 | J90: 0.30 | K90: 0.30 | L90: 3.70 | M90: 0.37
A91: Яйцо | B91: 1.00 | C91: 21.88 | D91: 1.50 | E91: 7.14 | F91: 107.90 | G91: 8.50 | H91: 16.50 | I91: 49.08 | J91: 10.50 | K91: 116.00 | L91: 340.00 | M91: 34.00
A92: Дрожжи сухие | B92: 0.20 | C92: 0.00 | D92: 0.20 | E92: 0.00 | F92: 0.20 | G92: 0.38 | H92: 0.00 | I92: 0.25 | J92: 0.00 | K92: 0.30 | L92: 1.53 | M92: 0.15
A93: Батон нарезной | B93: 30.00 | C93: 30.00 | D93: 30.00 | E93: 30.00 | F93: 30.00 | G93: 30.00 | H93: 30.00 | I93: 30.00 | J93: 30.00 | K93: 30.00 | L93: 300.00 | M93: 30.00
A94: Хлеб пшеничный 1с | B94: 29.00 | C94: 23.00 | D94: 23.00 | E94: 23.00 | F94: 23.00 | G94: 37.40 | H94: 23.00 | I94: 23.00 | J94: 23.00 | K94: 32.00 | L94: 259.40 | M94: 25.94
A95: Хлеб сельский | B95: 37.50 | C95: 37.50 | D95: 37.50 | E95: 37.50 | F95: 37.50 | G95: 37.50 | H95: 37.50 | I95: 37.50 | J95: 37.50 | K95: 37.50 | L95: 375.00 | M95: 37.50
A96: Мука пшеничная | B96: 36.40 | C96: 8.30 | D96: 34.50 | E96: 0.00 | F96: 22.70 | G96: 30.00 | H96: 0.00 | I96: 35.00 | J96: 41.80 | K96: 39.30 | L96: 248.00 | M96: 24.80
A97: Кисель-концентрат | B97: 0.00 | C97: 21.60 | D97: 0.00 | E97: 0.00 | F97: 0.00 | G97: 0.00 | H97: 21.60 | I97: 0.00 | J97: 0.00 | K97: 0.00 | L97: 43.20 | M97: 4.32
A98: Макаронные изделия | B98: 45.50 | C98: 0.00 | D98: 0.00 | E98: 0.00 | F98: 0.00 | G98: 45.50 | H98: 0.00 | I98: 35.00 | J98: 0.00 | K98: 0.00 | L98: 126.00 | M98: 12.60
A99: Вермишель | B99: 0.00 | C99: 0.00 | D99: 0.00 | E99: 0.00 | F99: 8.00 | G99: 0.00 | H99: 0.00 | I99: 0.00 | J99: 0.00 | K99: 0.00 | L99: 8.00 | M99: 0.80
A100: Крупа рисовая | B100: 0.00 | C100: 33.00 | D100: 8.20 | E100: 0.00 | F100: 38.50 | G100: 0.00 | H100: 0.00 | I100: 45.60 | J100: 0.00 | K100: 25.00 | L100: 150.30 | M100: 15.03
A101: Крупа кукурузная | B101: 0.00 | C101: 0.00 | D101: 0.00 | E101: 0.00 | F101: 0.00 | G101: 0.00 | H101: 0.00 | I101: 0.00 | J101: 0.00 | K101: 0.00 | L101: 0.00 | M101: 0.00
A102: Крупа манная | B102: 23.00 | C102: 1.75 | D102: 0.00 | E102: 11.40 | F102: 0.00 | G102: 0.00 | H102: 10.75 | I102: 20.00 | J102: 0.00 | K102: 0.00 | L102: 66.90 | M102: 6.69
A103: Горох | B103: 0.00 | C103: 0.00 | D103: 0.00 | E103: 0.00 | F103: 0.00 | G103: 20.25 | H103: 0.00 | I103: 0.00 | J103: 0.00 | K103: 0.00 | L103: 20.25 | M103: 2.03
A104: Крупа пшенная | B104: 0.00 | C104: 11.00 | D104: 0.00 | E104: 30.00 | F104: 0.00 | G104: 0.00 | H104: 30.00 | I104: 0.00 | J104: 0.00 | K104: 0.00 | L104: 71.00 | M104: 7.10
A105: Крупа ячневая | B105: 0.00 | C105: 0.00 | D105: 0.00 | E105: 0.00 | F105: 0.00 | G105: 0.00 | H105: 0.00 | I105: 0.00 | J105: 0.00 | K105: 0.00 | L105: 0.00 | M105: 0.00
A106: Полба | B106: 0.00 | C106: 0.00 | D106: 0.00 | E106: 0.00 | F106: 25.00 | G106: 0.00 | H106: 0.00 | I106: 0.00 | J106: 25.00 | K106: 0.00 | L106: 50.00 | M106: 5.00
A107: Крупа перловая | B107: 8.00 | C107: 0.00 | D107: 0.00 | E107: 0.00 | F107: 0.00 | G107: 0.00 | H107: 8.00 | I107: 0.00 | J107: 0.00 | K107: 25.50 | L107: 41.50 | M107: 4.15
A108: Крупа геркулесовая | B108: 0.00 | C108: 0.00 | D108: 25.00 | E108: 0.00 | F108: 0.00 | G108: 25.00 | H108: 0.00 | I108: 0.00 | J108: 0.00 | K108: 0.00 | L108: 50.00 | M108: 5.00
A109: Крупа пшеничная | B109: 0.00 | C109: 0.00 | D109: 0.00 | E109: 0.00 | F109: 0.00 | G109: 0.00 | H109: 0.00 | I109: 0.00 | J109: 0.00 | K109: 0.00 | L109: 0.00 | M109: 0.00
A110: Крупа гречневая | B110: 0.00 | C110: 0.00 | D110: 32.50 | E110: 0.00 | F110: 0.00 | G110: 25.00 | H110: 0.00 | I110: 0.00 | J110: 0.00 | K110: 0.00 | L110: 57.50 | M110: 5.75
A111: Картофель | B111: 212.00 | C111: 218.00 | D111: 50.00 | E111: 208.00 | F111: 86.00 | G111: 58.00 | H111: 246.00 | I111: 23.00 | J111: 240.00 | K111: 27.00 | L111: 1368.00 | M111: 136.80
A112: Морковь | B112: 24.75 | C112: 72.50 | D112: 32.63 | E112: 43.25 | F112: 34.13 | G112: 75.51 | H112: 49.50 | I112: 23.00 | J112: 72.50 | K112: 47.88 | L112: 475.65 | M112: 47.57
A113: Лук репчатый | B113: 19.29 | C113: 26.81 | D113: 31.38 | E113: 27.72 | F113: 19.01 | G113: 30.27 | H113: 20.26 | I113: 19.02 | J113: 21.78 | K113: 28.74 | L113: 244.28 | M113: 24.43
A114: Свекла | B114: 0.00 | C114: 59.38 | D114: 63.75 | E114: 45.28 | F114: 0.00 | G114: 38.62 | H114: 0.00 | I114: 43.52 | J114: 64.60 | K114: 0.00 | L114: 315.15 | M114: 31.52
A115: Капуста свежая | B115: 66.25 | C115: 0.00 | D115: 165.65 | E115: 50.00 | F115: 50.60 | G115: 0.00 | H115: 50.60 | I115: 20.00 | J115: 50.00 | K115: 43.75 | L115: 496.85 | M115: 49.69
A116: Икра кабачковая | B116: 0.00 | C116: 0.00 | D116: 0.00 | E116: 0.00 | F116: 0.00 | G116: 0.00 | H116: 0.00 | I116: 0.00 | J116: 0.00 | K116: 0.00 | L116: 0.00 | M116: 0.00
A117: Огурцы соленые | B117: 21.84 | C117: 0.00 | D117: 0.00 | E117: 0.00 | F117: 0.00 | G117: 0.00 | H117: 21.84 | I117: 91.00 | J117: 0.00 | K117: 0.00 | L117: 134.68 | M117: 13.47
A118: Помидоры свежие | B118: 0.00 | C118: 0.00 | D118: 0.00 | E118: 0.00 | F118: 0.00 | G118: 0.00 | H118: 0.00 | I118: 0.00 | J118: 0.00 | K118: 0.00 | L118: 0.00 | M118: 0.00
A119: Огурцы свежие | B119: 0.00 | C119: 0.00 | D119: 0.00 | E119: 0.00 | F119: 0.00 | G119: 0.00 | H119: 0.00 | I119: 0.00 | J119: 0.00 | K119: 0.00 | L119: 0.00 | M119: 0.00
A120: Соус Переменка | B120: 0.00 | C120: 0.00 | D120: 0.00 | E120: 0.00 | F120: 0.00 | G120: 0.00 | H120: 0.00 | I120: 0.00 | J120: 0.00 | K120: 0.00 | L120: 0.00 | M120: 0.00
A121: Томат-паста | B121: 1.00 | C121: 0.00 | D121: 4.00 | E121: 0.00 | F121: 0.00 | G121: 0.00 | H121: 0.00 | I121: 1.00 | J121: 0.00 | K121: 0.00 | L121: 6.00 | M121: 0.60
A122: Масло сливочное | B122: 12.60 | C122: 15.90 | D122: 20.50 | E122: 8.00 | F122: 15.20 | G122: 17.10 | H122: 19.00 | I122: 13.00 | J122: 30.00 | K122: 18.00 | L122: 169.30 | M122: 16.93
A123: Масло растительное | B123: 18.30 | C123: 5.70 | D123: 18.40 | E123: 14.10 | F123: 12.28 | G123: 14.30 | H123: 9.00 | I123: 9.16 | J123: 6.50 | K123: 5.70 | L123: 113.44 | M123: 11.34
A124: Фрукты свежие | B124: 0.00 | C124: 114.00 | D124: 0.00 | E124: 114.00 | F124: 0.00 | G124: 114.00 | H124: 0.00 | I124: 114.00 | J124: 0.00 | K124: 114.00 | L124: 570.00 | M124: 57.00
A125: Яблоки | B125: 19.00 | C125: 0.00 | D125: 12.83 | E125: 39.65 | F125: 40.80 | G125: 0.00 | H125: 24.45 | I125: 0.00 | J125: 40.80 | K125: 12.83 | L125: 190.36 | M125: 19.04
A126: крыжовник зам. | B126: 0.00 | C126: 0.00 | D126: 0.00 | E126: 0.00 | F126: 0.00 | G126: 0.00 | H126: 0.00 | I126: 0.00 | J126: 0.00 | K126: 0.00 | L126: 0.00 | M126: 0.00
A127: Лимон | B127: 0.00 | C127: 5.10 | D127: 0.00 | E127: 0.00 | F127: 0.00 | G127: 0.00 | H127: 5.10 | I127: 0.00 | J127: 0.00 | K127: 0.00 | L127: 10.20 | M127: 1.02
A128: Ягодная смесь зам. | B128: 0.00 | C128: 0.00 | D128: 0.00 | E128: 0.00 | F128: 0.00 | G128: 0.00 | H128: 0.00 | I128: 0.00 | J128: 0.00 | K128: 0.00 | L128: 0.00 | M128: 0.00
A129: Сок | B129: 125.00 | C129: 0.00 | D129: 125.00 | E129: 0.00 | F129: 125.00 | G129: 0.00 | H129: 125.00 | I129: 0.00 | J129: 125.00 | K129: 0.00 | L129: 625.00 | M129: 62.50
A130: Курага | B130: 0.00 | C130: 0.00 | D130: 0.00 | E130: 0.00 | F130: 0.00 | G130: 0.00 | H130: 0.00 | I130: 0.00 | J130: 0.00 | K130: 0.00 | L130: 0.00 | M130: 0.00
A131: Сухофрукты | B131: 18.36 | C131: 0.00 | D131: 0.00 | E131: 18.36 | F131: 0.00 | G131: 0.00 | H131: 0.00 | I131: 18.36 | J131: 0.00 | K131: 0.00 | L131: 55.08 | M131: 5.51
A132: Урюк | B132: 7.20 | C132: 0.00 | D132: 15.30 | E132: 0.00 | F132: 0.00 | G132: 22.50 | H132: 0.00 | I132: 0.00 | J132: 0.00 | K132: 15.30 | L132: 60.30 | M132: 6.03
A133: повидло фруктовое | B133: 0.00 | C133: 0.00 | D133: 0.00 | E133: 0.00 | F133: 0.00 | G133: 0.00 | H133: 0.00 | I133: 0.00 | J133: 0.00 | K133: 0.00 | L133: 0.00 | M133: 0.00
A134: Шиповник порошок | B134: 0.00 | C134: 0.00 | D134: 0.00 | E134: 3.00 | F134: 0.00 | G134: 0.00 | H134: 0.00 | I134: 0.00 | J134: 3.00 | K134: 0.00 | L134: 6.00 | M134: 0.60
A135: Молоко | B135: 100.00 | C135: 322.96 | D135: 148.00 | E135: 199.40 | F135: 218.00 | G135: 152.50 | H135: 324.96 | I135: 193.00 | J135: 136.00 | K135: 218.00 | L135: 2012.82 | M135: 201.28
A136: Кефир | B136: 0.00 | C136: 0.00 | D136: 0.00 | E136: 0.00 | F136: 123.60 | G136: 0.00 | H136: 0.00 | I136: 0.00 | J136: 0.00 | K136: 123.60 | L136: 247.20 | M136: 24.72
A137: Ряженка | B137: 0.00 | C137: 0.00 | D137: 123.60 | E137: 0.00 | F137: 0.00 | G137: 123.60 | H137: 0.00 | I137: 0.00 | J137: 123.60 | K137: 0.00 | L137: 370.80 | M137: 37.08
A138: Катык | B138: 123.60 | C138: 0.00 | D138: 0.00 | E138: 123.60 | F138: 0.00 | G138: 0.00 | H138: 0.00 | I138: 123.60 | J138: 0.00 | K138: 0.00 | L138: 370.80 | M138: 37.08
A139: Молоко сгущенное | B139: 0.00 | C139: 20.00 | D139: 0.00 | E139: 20.00 | F139: 0.00 | G139: 0.00 | H139: 20.00 | I139: 0.00 | J139: 0.00 | K139: 0.00 | L139: 60.00 | M139: 6.00
A140: Сметана | B140: 5.00 | C140: 3.90 | D140: 6.00 | E140: 19.28 | F140: 10.38 | G140: 0.00 | H140: 11.00 | I140: 5.00 | J140: 10.00 | K140: 0.00 | L140: 70.56 | M140: 7.06
A141: Творог | B141: 0.00 | C141: 98.80 | D141: 0.00 | E141: 109.28 | F141: 0.00 | G141: 0.00 | H141: 140.00 | I141: 0.00 | J141: 85.00 | K141: 0.00 | L141: 433.08 | M141: 43.31
A142: Говядина | B142: 0.00 | C142: 0.00 | D142: 0.00 | E142: 47.00 | F142: 0.00 | G142: 0.00 | H142: 0.00 | I142: 52.00 | J142: 0.00 | K142: 0.00 | L142: 99.00 | M142: 9.90
A143: Фарш из говядины | B143: 48.00 | C143: 17.10 | D143: 77.80 | E143: 0.00 | F143: 17.10 | G143: 60.10 | H143: 0.00 | I143: 0.00 | J143: 58.00 | K143: 41.70 | L143: 319.80 | M143: 31.98
A144: Цыплята | B144: 119.97 | C144: 0.00 | D144: 98.46 | E144: 0.00 | F144: 104.58 | G144: 84.60 | H144: 33.85 | I144: 0.00 | J144: 33.85 | K144: 81.58 | L144: 556.89 | M144: 55.69
A145: индейка филе | B145: 0.00 | C145: 0.00 | D145: 0.00 | E145: 0.00 | F145: 0.00 | G145: 0.00 | H145: 0.00 | I145: 0.00 | J145: 0.00 | K145: 0.00 | L145: 0.00 | M145: 0.00
A146: куриная грудка | B146: 0.00 | C146: 0.00 | D146: 0.00 | E146: 0.00 | F146: 0.00 | G146: 0.00 | H146: 0.00 | I146: 0.00 | J146: 0.00 | K146: 0.00 | L146: 0.00 | M146: 0.00
A147: Сыр | B147: 0.00 | C147: 7.14 | D147: 0.00 | E147: 7.14 | F147: 18.00 | G147: 7.14 | H147: 0.00 | I147: 7.14 | J147: 0.00 | K147: 7.14 | L147: 53.70 | M147: 5.37
A148: рыба | B148: 0.00 | C148: 69.08 | D148: 0.00 | E148: 0.00 | F148: 0.00 | G148: 0.00 | H148: 69.08 | I148: 0.00 | J148: 0.00 | K148: 0.00 | L148: 138.16 | M148: 13.82
A149: Кофейный напиток | B149: 0.00 | C149: 0.00 | D149: 0.00 | E149: 1.50 | F149: 0.00 | G149: 0.00 | H149: 1.50 | I149: 0.00 | J149: 0.00 | K149: 1.50 | L149: 4.50 | M149: 0.45
A150: Какао-порошок | B150: 0.00 | C150: 1.50 | D150: 0.00 | E150: 0.00 | F150: 1.50 | G150: 0.00 | H150: 0.00 | I150: 1.50 | J150: 0.00 | K150: 0.00 | L150: 4.50 | M150: 0.45
A151: печенье | B151: 0.00 | C151: 0.00 | D151: 0.00 | E151: 0.00 | F151: 0.00 | G151: 0.00 | H151: 0.00 | I151: 0.00 | J151: 20.00 | K151: 0.00 | L151: 20.00 | M151: 2.00
A152: крекер | B152: 0.00 | C152: 10.00 | D152: 0.00 | E152: 0.00 | F152: 0.00 | G152: 0.00 | H152: 10.00 | I152: 0.00 | J152: 0.00 | K152: 0.00 | L152: 20.00 | M152: 2.00
A153: Соль | B153: 5.20 | C153: 3.50 | D153: 5.30 | E153: 4.00 | F153: 4.20 | G153: 4.60 | H153: 4.20 | I153: 5.10 | J153: 4.50 | K153: 4.80 | L153: 45.40 | M153: 4.54
A154: Крахмал | B154: 0.00 | C154: 0.00 | D154: 0.00 | E154: 0.00 | F154: 0.00 | G154: 0.00 | H154: 0.00 | I154: 0.00 | J154: 0.00 | K154: 0.00 | L154: 0.00 | M154: 0.00
A155: Сухари панировочные | B155: 0.00 | C155: 5.00 | D155: 0.00 | E155: 0.00 | F155: 0.00 | G155: 6.00 | H155: 11.00 | I155: 0.00 | J155: 2.00 | K155: 5.80 | L155: 29.80 | M155: 2.98
A156: вафли | B156: 0.00 | C156: 0.00 | D156: 0.00 | E156: 20.00 | F156: 0.00 | G156: 0.00 | H156: 0.00 | I156: 0.00 | J156: 0.00 | K156: 0.00
A157: Крупы, бобовые | B157: 31.00 | C157: 45.75 | D157: 65.70 | E157: 41.40 | F157: 63.50 | G157: 70.25 | H157: 48.75 | I157: 65.60 | J157: 25.00 | K157: 50.50 | L157: 507.45 | M157: 50.75
A158: Овощи разные | B158: 133.13 | C158: 158.69 | D158: 297.41 | E158: 166.25 | F158: 103.74 | G158: 144.40 | H158: 142.20 | I158: 197.54 | J158: 208.88 | K158: 120.37 | L158: 1672.61 | M158: 167.26
A159: Фрукты | B159: 19.00 | C159: 119.10 | D159: 12.83 | E159: 153.65 | F159: 40.80 | G159: 114.00 | H159: 29.55 | I159: 114.00 | J159: 40.80 | K159: 126.83 | L159: 770.56 | M159: 77.06
A160: Фрукты сухие | B160: 25.56 | C160: 0.00 | D160: 15.30 | E160: 18.36 | F160: 0.00 | G160: 22.50 | H160: 0.00 | I160: 18.36 | J160: 0.00 | K160: 15.30 | L160: 115.38 | M160: 11.54
A161: Молочные прод. | B161: 223.60 | C161: 342.96 | D161: 271.60 | E161: 343.00 | F161: 341.60 | G161: 276.10 | H161: 344.96 | I161: 316.60 | J161: 259.60 | K161: 341.60 | L161: 3061.62 | M161: 306.16
A162: птица | B162: 119.97 | C162: 0.00 | D162: 98.46 | E162: 0.00 | F162: 104.58 | G162: 84.60 | H162: 33.85 | I162: 0.00 | J162: 33.85 | K162: 81.58 | L162: 556.89 | M162: 55.69
A163: Говядина | B163: 48.00 | C163: 17.10 | D163: 77.80 | E163: 47.00 | F163: 17.10 | G163: 60.10 | H163: 0.00 | I163: 52.00 | J163: 58.00 | K163: 41.70 | L163: 418.80 | M163: 41.88
A164: Макаронные изделия | B164: 45.50 | C164: 0.00 | D164: 0.00 | E164: 0.00 | F164: 8.00 | G164: 45.50 | H164: 0.00 | I164: 35.00 | J164: 0.00 | K164: 0.00 | L164: 134.00 | M164: 13.40
A165: Хлеб пшеничный | B165: 59.00 | C165: 53.00 | D165: 53.00 | E165: 53.00 | F165: 53.00 | G165: 67.40 | H165: 53.00 | I165: 53.00 | J165: 53.00 | K165: 62.00 | L165: 559.40 | M165: 55.94
A166: Кондитерские изделия | B166: 0.00 | C166: 10.00 | D166: 0.00 | E166: 20.00 | F166: 0.00 | G166: 0.00 | H166: 10.00 | I166: 0.00 | J166: 20.00 | K166: 0.00 | L166: 60.00 | M166: 6.00

Sheet 3-7 лет Послед
A1: "Согласовано" | E1: "Утверждаю"
A2: ________________________ | E2: Заместитель генерального директора по организации питания АО "Департамент продовольствия и социального питания г. Казани"
A3: __________________________ | E3: __________________А.К. Агапова
E4: __________________2023г
C5: Примерное 10-дневное меню
C6: для организации питания детей в дошкольных образовательных учреждениях
C7: от 3-7 лет с 7-12 часовым пребыванием
A8: День 1 - ый
A9: Прием пищи | C9: Выход блюда | D9: Пищевые вещества (г) | G9: Энергетическая | H9: № рецептуры
A10: Наименование блюд | G10: ценность
D11: белки | E11: жиры | F11: угл-ды | G11: Ккал
B12: ЗАВТРАК
A13: Каша манная молочная с маслом | C13: 200/5 | D13: 10.00 | E13: 10.00 | F13: 24.50 | G13: 228.00 | H13: ТТК №4
A14: Чай с сахаром | C14: 180/5 | D14: 0.06 | E14: 0.02 | F14: 4.99 | G14: 20.38 | H14: № 411 Дели2016
A15: Бутерброд с маслом сливочным | C15: 30/5 | D15: 2.30 | E15: 4.50 | F15: 15.40 | G15: 111.00 | H15: №1 Дели2010
A16: Итого: | C16: 425 | D16: 12.36 | E16: 14.52 | F16: 44.89 | G16: 359.38
A17: Сок | C17: 125 | D17: 0.60 | E17: 0.06 | F17: 22.00 | G17: 90.90 | H17: №418Дели2016
A18: абрикосовый
A19: Итого: | C19: 125 | D19: 0.60 | E19: 0.06 | F19: 22.00 | G19: 90.90
C20: 550 | D20: 12.96 | E20: 14.58 | F20: 66.89 | G20: 450.28
B21: ОБЕД
A22: Салат из капусты с яблоками | C22: 50 | D22: 0.70 | E22: 2.50 | F22: 4.50 | G22: 43.50 | H22: №7 Партнер 2014
A23: Рассольник ленинградский с курицей, со сметаной | C23: 200/15/5 | D23: 4.56 | E23: 7.50 | F23: 12.64 | G23: 136.30 | H23: №82 Дели 2016
A24: Тефтели из говядины с соусом томатным | C24: 70/10 | D24: 6.2 | E24: 6.5 | F24: 5 | G24: 103 | H24: ТТК № 1152 от 09.10.2020 и №364 С-Петербург 2008
A25: Макароны отварные | C25: 130 | D25: 4.80 | E25: 3.60 | F25: 29.40 | G25: 169.20 | H25: №218 Дели 2016
A26: Компот из сухофруктов | C26: 180 | D26: 0.7 | E26: 0.0 | F26: 18.0 | G26: 75 | H26: №394, Дели 2016
A27: Хлеб сельский | C27: 37.5 | D27: 1.8 | E27: 0.4 | F27: 18 | G27: 82.5
A28: Итого: | C28: 697.5 | D28: 18.76 | E28: 20.54 | F28: 87.54 | G28: 609.70
B29: ПОЛДНИК
A30: Булочка Домашняя | C30: 50 | D30: 4.90 | E30: 5.00 | F30: 28.00 | G30: 177.00 | H30: №258 Партнер г. Уфа 2014
A31: Катык | C31: 120 | D31: 3.77 | E31: 3 | F31: 5 | G31: 62.1 | H31: №401Дели2010
A32: Рагу с курицей | C32: 40/120 | D32: 6.00 | E32: 10.00 | F32: 16.00 | G32: 178.00 | H32: ТТК №63
A33: Чай фруктовый | C33: 180/7 | D33: 0.18 | E33: 0.09 | F33: 17.00 | G33: 69.50 | H33: ТТК №56
A34: Хлеб пшеничный 1с | C34: 23 | D34: 1.80 | E34: 0.23 | F34: 11.30 | G34: 54.50
A35: Итого: | C35: 540 | D35: 16.65 | E35: 18.32 | F35: 77.30 | G35: 541.10
A36: ВСЕГО: | C36: 1787.5 | D36: 48.37 | E36: 53.44 | F36: 231.73 | G36: 1601.08
A38: День 2- ой
A39: Прием пищи | C39: Выход блюда | D39: Пищевые вещества (г) | G39: Энергетическая | H39: № рецептуры
A40: Наименование блюд | G40: ценность
D41: белки | E41: жиры | F41: угл-ды | G41: Ккал
B42: ЗАВТРАК
A43: Каша "Дружба" молочная с маслом | C43: 200/5 | D43: 5.20 | E43: 5.80 | F43: 25.20 | G43: 173.80 | H43: ТТК №7
A44: Какао с молоком | C44: 180 | D44: 2.42 | E44: 2.58 | F44: 13.61 | G44: 87.30 | H44: №272 Парнер г. Уфа 2014
A45: Бутерброд с сыром, маслом | C45: 30/7/3 | D45: 4.80 | E45: 7.20 | F45: 15.40 | G45: 146.00 | H45: №3 Дели2010
A46: Итого: | C46: 425 | D46: 12.42 | E46: 15.58 | F46: 54.21 | G46: 407.10
A47: Фрукты свежие | C47: 100 | D47: 1.00 | E47: 0.00 | F47: 8.10 | G47: 36.40 | H47: № 368 Дели 2010
A48: апельсин
A49: Итого: | C49: 100 | D49: 1.00 | E49: 0.00 | F49: 8.10 | G49: 36.40
C50: 525 | D50: 13.42 | E50: 15.58 | F50: 62.31 | G50: 443.50
B51: ОБЕД
A52: Салат из свеклы | C52: 50 | D52: 0.60 | E52: 2.50 | F52: 4.20 | G52: 42.00 | H52: №34, Дели2016
A53: Суп картофельный с клецками с мясными фрикадельками | C53: 200/15 | D53: 3.60 | E53: 7.80 | F53: 25.60 | G53: 187.00 | H53: №38 Пермь2001
A54: Биточки рубленые из рыбы | C54: 70 | D54: 8.75 | E54: 6.80 | F54: 8.15 | G54: 129.00 | H54: ТТК №3Д
A55: Пюре Картофельное | C55: 130 | D55: 3.70 | E55: 4.44 | F55: 25.00 | G55: 155.00 | H55: №137 Партнер 2014
A56: Кисель | C56: 180 | F56: 10.00 | G56: 40.00 | H56: №284Партнер2014
A57: Хлеб сельский | C57: 37.5 | D57: 1.8 | E57: 0.4 | F57: 18 | G57: 82.5
A58: Итого: | C58: 682.5 | D58: 18.45 | E58: 21.94 | F58: 90.95 | G58: 635.50
B59: ПОЛДНИК
A60: Кондитерские изделия | C60: 10 | D60: 2.50 | E60: 3.00 | F60: 30.00 | G60: 158.00
A61: крекер
A62: Молоко кипяченое | C62: 120 | D62: 3.40 | E62: 3.00 | F62: 5.70 | G62: 63.40 | H62: №419 Дели2016
A63: Салат из моркови | C63: 50 | D63: 0.75 | E63: 0.06 | F63: 8.50 | G63: 37.00 | H63: №42 Дели2016г
A64: Пудинг из творога с рисом с молоком сгущенным | C64: 150 | D64: 7.50 | E64: 12.00 | F64: 26.00 | G64: 242.00 | H64: № 250 Дели 2016
A65: Чай с сахаром и лимоном | C65: 180/5/5 | D65: 0.12 | E65: 0.01 | F65: 10.20 | G65: 41.40 | H65: №393Дели2010
A66: Хлеб пшеничный 1с | C66: 23 | D66: 1.80 | E66: 0.23 | F66: 11.30 | G66: 54.50
A67: Итого: | C67: 543 | D67: 16.07 | E67: 18.30 | F67: 91.70 | G67: 596.30
A68: ВСЕГО: | C68: 1750.5 | D68: 47.94 | E68: 55.82 | F68: 244.96 | G68: 1675.30
A70: День 3 - ий
A71: Прием пищи | C71: Выход блюда | D71: Пищевые вещества (г) | G71: Энергетическая | H71: № рецептуры
A72: Наименование блюд | G72: ценность
D73: белки | E73: жиры | F73: угл-ды | G73: Ккал
B74: ЗАВТРАК
A75: Каша Геркулесовая молочная с маслом | C75: 200/5 | D75: 6.70 | E75: 7.50 | F75: 22.00 | G75: 182.30 | H75: ТТК №5
A76: Чай с молоком,сахаром | C76: 180/5 | D76: 2.60 | E76: 2.30 | F76: 14.30 | G76: 89.00 | H76: № 394 Дели2010
A77: Бутерброд с маслом сливочным | C77: 30/5 | D77: 2.30 | E77: 4.50 | F77: 15.40 | G77: 111.00 | H77: №1 Дели2010
A78: Итого: | C78: 425 | D78: 11.60 | E78: 14.30 | F78: 51.70 | G78: 382.30
A79: Сок | C79: 125 | D79: 1.20 | E79: 0.00 | F79: 12.00 | G79: 49.60 | H79: №418Дели2016
A80: яблочно-абрикосовый
A81: Итого: | C81: 125 | D81: 1.20 | E81: 0.00 | F81: 12.00 | G81: 49.60
C82: 550 | D82: 12.80 | E82: 14.30 | F82: 63.70 | G82: 431.90
B83: ОБЕД
A84: Салат витаминный | C84: 50 | D84: 0.75 | E84: 1.32 | F84: 4.00 | G84: 30.80 | H84: №15 Партнер 2009
A85: Свекольник с мясными фрикадельками со сметаной | C85: 200/15/6 | D85: 3.16 | E85: 5.40 | F85: 8.14 | G85: 94.00 | H85: №35,сб Пермь2001
A86: Гуляш из курицы | C86: 45/45 | D86: 7.56 | E86: 8.70 | F86: 24.60 | G86: 207.00 | H86: ТТК №91
A87: Каша гречневая вязкая | C87: 130/3 | D87: 4.90 | E87: 3.50 | F87: 21.00 | G87: 135.10 | H87: №182,Дели 2016
A88: Напиток из урюка | C88: 180 | D88: 0.6 | E88: 0.0 | F88: 15.0 | G88: 63 | H88: ТТК №68
A89: Хлеб сельский | C89: 37.5 | D89: 1.8 | E89: 0.4 | F89: 18 | G89: 82.5
A90: Итого: | C90: 711.5 | D90: 18.77 | E90: 19.35 | F90: 90.74 | G90: 611.90
B91: ПОЛДНИК
A92: Булочка Дорожная | C92: 50 | D92: 3.70 | E92: 5.50 | F92: 37.30 | G92: 213.00 | H92: №453 Дели 2016
A93: Ряженка | C93: 120 | D93: 4.30 | E93: 3.00 | F93: 5.00 | G93: 64.00 | H93: №401 Дели2010
A94: Голубцы ленивые | C94: 150 | D94: 6.00 | E94: 10.00 | F94: 16.00 | G94: 178.00 | H94: №306 Сборник методических рекомендаций С Петербург 2008
A95: Чай с сахаром | C95: 180/5 | D95: 0.06 | E95: 0.02 | F95: 4.99 | G95: 20.38 | H95: № 411 Дели2016
A96: Хлеб пшеничный 1с | C96: 23 | D96: 1.80 | E96: 0.23 | F96: 11.30 | G96: 54.50
A97: Итого: | C97: 528 | D97: 15.86 | E97: 18.75 | F97: 74.59 | G97: 529.88
A98: ВСЕГО: | C98: 1789.5 | D98: 47.43 | E98: 52.40 | F98: 229.03 | G98: 1573.68
A100: День 4 - ый
A101: Прием пищи | C101: Выход блюда | D101: Пищевые вещества (г) | G101: Энергетическая | H101: № рецептуры
A102: Наименование блюд | G102: ценность
D103: белки | E103: жиры | F103: угл-ды | G103: Ккал
B104: ЗАВТРАК
A105: Каша пшенная молочная с маслом | C105: 200/5 | D105: 8.00 | E105: 6.60 | F105: 26.00 | G105: 195.40 | H105: ТТК №6
A106: Кофейный напиток с молоком | C106: 180 | D106: 1.22 | E106: 1.34 | F106: 11.94 | G106: 65.00 | H106: №270 Партнер г. Уфа 2014
A107: Бутерброд с сыром, маслом | C107: 30/7/3 | D107: 4.80 | E107: 7.20 | F107: 15.40 | G107: 146.00 | H107: №3 Дели2010
A108: Итого: | C108: 425 | D108: 14.02 | E108: 15.14 | F108: 53.34 | G108: 406.40
A109: Фрукты свежие | C109: 100 | D109: 0.30 | E109: 0.43 | F109: 14.00 | G109: 61.00 | H109: № 386 Дели 2016
A110: груша
A111: Итого: | C111: 100 | D111: 0.30 | E111: 0.43 | F111: 14.00 | G111: 61.00
C112: 525 | D112: 14.32 | E112: 15.57 | F112: 67.34 | G112: 467.40
B113: ОБЕД
A114: Салат "Пестрый" | C114: 50 | D114: 0.50 | E114: 2.25 | F114: 4.80 | G114: 42.00 | H114: №31, справ.М2003
A115: Щи со свежей капустой, картофелем, на м/б и сметаной | C115: 200/5 | D115: 4.60 | E115: 8.00 | F115: 17.00 | G115: 158.50 | H115: №73 Дели 2016
A116: Жаркое по-домашнему из отварной говядины | C116: 180 | D116: 10 | E116: 9.5 | F116: 35 | G116: 266 | H116: ТТК №29 Д
A117: Компот из сухофруктов | C117: 180 | D117: 0.7 | E117: 0.0 | F117: 18.0 | G117: 75 | H117: №394, Дели 2016
A118: Хлеб сельский | C118: 37.5 | D118: 1.8 | E118: 0.4 | F118: 18 | G118: 82.5
A119: Итого: | C119: 652.5 | D119: 17.60 | E119: 20.19 | F119: 92.80 | G119: 624.20
B120: ПОЛДНИК
A121: Кондитерские изделия | C121: 20 | D121: 0.80 | E121: 1.70 | F121: 34.00 | G121: 156.00
A122: вафли
A123: Катык | C123: 120 | D123: 3.77 | E123: 3 | F123: 5 | G123: 62.1 | H123: №401Дели2010
A124: Салат из моркови с яблоками | C124: 50 | D124: 0.37 | E124: 2.00 | F124: 4.30 | G124: 37.00 | H124: №41Дели2016
A125: Суфле из творога с молоком сгущенным | C125: 150/20 | D125: 9.00 | E125: 12.50 | F125: 24.00 | G125: 244.50 | H125: ТТК №567
A126: Напиток шиповника | C126: 180/5 | D126: 0.6 | E126: 0.3 | F126: 6.5 | G126: 31.1 | H126: ТТК № 59
A127: Хлеб пшеничный 1с | C127: 23 | D127: 1.80 | E127: 0.23 | F127: 11.30 | G127: 54.50
A128: Итого: | C128: 568 | D128: 16.34 | E128: 19.73 | F128: 85.10 | G128: 585.20
A129: ВСЕГО: | C129: 1745.5 | D129: 48.26 | E129: 55.49 | F129: 245.24 | G129: 1676.80
A132: День 5 - ый
A133: Прием пищи | C133: Выход блюда | D133: Пищевые вещества (г) | G133: Энергетическая | H133: № рецептуры
A134: Наименование блюд | G134: ценность
D135: белки | E135: жиры | F135: угл-ды | G135: Ккал
B136: ЗАВТРАК
A137: Каша полбяная молочная с маслом | C137: 200/5 | D137: 7.30 | E137: 7.42 | F137: 22.80 | G137: 187.20 | H137: ТТК №1
A138: Какао с молоком | C138: 180 | D138: 2.42 | E138: 2.58 | F138: 13.61 | G138: 87.30 | H138: №272 Парнер г. Уфа 2014
A139: Бутерброд с маслом сливочным | C139: 30/5 | D139: 2.30 | E139: 4.50 | F139: 15.40 | G139: 111.00 | H139: №1 Дели2010
A140: Итого: | C140: 420 | D140: 12.02 | E140: 14.50 | F140: 51.81 | G140: 385.50
A141: Сок | C141: 125 | D141: 0.87 | E141: 0.25 | F141: 20.00 | G141: 85.00 | H141: №418Дели2016
A142: вишневый
A143: Итого: | C143: 125 | D143: 0.87 | E143: 0.25 | F143: 16.50 | G143: 71.00
C144: 545 | D144: 12.89 | E144: 14.75 | F144: 68.31 | G144: 456.50
B145: ОБЕД
A146: Салат из свежей капусты | C146: 50 | D146: 0.70 | E146: 2.50 | F146: 4.50 | G146: 43.50 | H146: №21 Дели2016
A147: Суп вермишелевый с картофелем и мясными фрикадельками | C147: 200/15 | D147: 4.86 | E147: 5.80 | F147: 15.24 | G147: 132.60 | H147: №88 Дели 2016
A148: Плов из курицы | C148: 160 | D148: 11.8 | E148: 13.5 | F148: 38.9 | G148: 324 | H148: №321 Дели 2016
A149: Компот из свежих яблок | C149: 180 | D149: 0.10 | E149: 0.10 | F149: 11.80 | G149: 48.50 | H149: № 390 Дели 2016
A150: Хлеб сельский | C150: 37.5 | D150: 1.8 | E150: 0.4 | F150: 18 | G150: 82.5
A151: Итого: | C151: 642.5 | D151: 19.26 | E151: 22.30 | F151: 88.44 | G151: 631.10
B152: ПОЛДНИК
A153: Пицца с сыром | C153: 50 | D153: 3.00 | E153: 5.50 | F153: 40.00 | G153: 221.00 | H153: ТТК №1585 от 08.09.2021
A154: Кефир | C154: 120 | D154: 3.50 | E154: 3.00 | F154: 4.80 | G154: 60.20 | H154: №401 Дели2010
A155: Омлет натуральный | C155: 140 | D155: 8.50 | E155: 8.68 | F155: 13.60 | G155: 167.40 | H155: №229 Дели2016
A156: Чай с сахаром | C156: 180/5 | D156: 0.06 | E156: 0.02 | F156: 4.99 | G156: 20.38 | H156: № 411 Дели2016
A157: Хлеб пшеничный 1с | C157: 23 | D157: 1.80 | E157: 0.23 | F157: 11.30 | G157: 54.50
A158: Итого: | C158: 518 | D158: 16.86 | E158: 17.43 | F158: 74.69 | G158: 523.48
A159: ВСЕГО: | C159: 1705.5 | D159: 49.01 | E159: 54.48 | F159: 231.44 | G159: 1611.08
A161: День 6 - ой
A162: Прием пищи | C162: Выход блюда | D162: Пищевые вещества (г) | G162: Энергетическая | H162: № рецептуры
A163: Наименование блюд | G163: ценность
D164: белки | E164: жиры | F164: угл-ды | G164: Ккал
B165: ЗАВТРАК
A166: Каша Геркулесовая молочная с маслом | C166: 200/5 | D166: 6.70 | E166: 7.50 | F166: 22.00 | G166: 182.30 | H166: ТТК №5
A167: Чай с молоком,сахаром | C167: 180/5 | D167: 2.60 | E167: 2.30 | F167: 14.30 | G167: 89.00 | H167: № 394 Дели2010
A168: Бутерброд с сыром, маслом | C168: 30/7/3 | D168: 4.80 | E168: 7.20 | F168: 15.40 | G168: 146.00 | H168: №3 Дели2010
A169: Итого: | C169: 430 | D169: 14.10 | E169: 17.00 | F169: 51.70 | G169: 417.30
A170: Фрукты свежие | C170: 100 | D170: 0.40 | E170: 0.40 | F170: 12.00 | G170: 53.20 | H170: № 386 Дели 2016
A171: яблоко
A172: Итого: | C172: 100 | D172: 0.40 | E172: 0.40 | F172: 12.00 | G172: 53.20
C173: 530 | D173: 14.50 | E173: 15.40 | F173: 63.70 | G173: 470.50
B174: ОБЕД
A175: Салат из свеклы и моркови | C175: 50 | D175: 1.30 | E175: 2.50 | F175: 6.00 | G175: 51.00 | H175: ТТК №60
A176: Суп картофельный с горохом с мясными фрикадельками и гренками | C176: 200/15/10 | D176: 3.25 | E176: 3.00 | F176: 18.00 | G176: 112.00 | H176: ТТК№139
A177: Биточки куриные "Солнышко" | C177: 70 | D177: 8.00 | E177: 10.50 | F177: 6.20 | G177: 152.00 | H177: ТТК №97Д
A178: Макароны отварные | C178: 130 | D178: 4.80 | E178: 3.60 | F178: 29.40 | G178: 169.20 | H178: №218 Дели 2016
A179: Напиток из урюка | C179: 180 | D179: 0.6 | E179: 0.0 | F179: 15.0 | G179: 63 | H179: ТТК №68
A180: Хлеб сельский | C180: 37.5 | D180: 1.8 | E180: 0.4 | F180: 18 | G180: 82.5
A181: Итого: | C181: 692.5 | D181: 19.75 | E181: 20.03 | F181: 92.60 | G181: 629.20
B182: ПОЛДНИК
A183: Булочка сдобная | C183: 50 | D183: 2.2 | E183: 4.8 | F183: 19.3 | G183: 130 | H183: №257 Партнер2014 г. Уфа
A184: Ряженка | C184: 120 | D184: 4.30 | E184: 3.00 | F184: 5.00 | G184: 64.00 | H184: №401 Дели2010
A185: Гречка с фаршем и овощами | C185: 130 | D185: 7.50 | E185: 10.50 | F185: 29.60 | G185: 243.00 | H185: ТТК №1630 от 10.11.2021
A186: Чай фруктовый | C186: 180/7 | D186: 0.18 | E186: 0.09 | F186: 17.00 | G186: 69.50 | H186: ТТК №56
A187: Хлеб пшеничный 1с | C187: 23 | D187: 1.80 | E187: 0.23 | F187: 11.30 | G187: 54.50
A188: Итого: | C188: 510 | D188: 15.98 | E188: 18.62 | F188: 82.20 | G188: 561.00
A189: ВСЕГО: | C189: 1732.5 | D189: 50.23 | E189: 56.05 | F189: 238.50 | G189: 1660.70
A191: День 7 - ой
A192: Прием пищи | C192: Выход блюда | D192: Пищевые вещества (г) | G192: Энергетическая | H192: № рецептуры
A193: Наименование блюд | G193: ценность
D194: белки | E194: жиры | F194: угл-ды | G194: Ккал
B195: ЗАВТРАК
A196: Каша пшенная молочная с маслом | C196: 200/5 | D196: 8.00 | E196: 6.60 | F196: 26.00 | G196: 194.00 | H196: ТТК №6
A197: Кофейный напиток с молоком | C197: 180 | D197: 1.22 | E197: 1.34 | F197: 11.94 | G197: 65.00 | H197: №270 Партнер г. Уфа 2014
A198: Бутерброд с маслом сливочным | C198: 30/5 | D198: 2.30 | E198: 4.50 | F198: 15.40 | G198: 111.00 | H198: №1 Дели2010
A199: Итого: | C199: 420 | D199: 11.52 | E199: 12.44 | F199: 53.34 | G199: 370.00
A200: Сок | C200: 125 | D200: 1.30 | E200: 2.00 | F200: 15.00 | G200: 83.00 | H200: №418Дели2016
A201: персик-банан
A202: Итого: | C202: 125 | D202: 1.30 | E202: 2.00 | F202: 15.00 | G202: 83.00
C203: 545 | D203: 12.82 | E203: 14.44 | F203: 68.34 | G203: 453.00
B204: ОБЕД
A205: Салат из свежей капусты | C205: 50 | D205: 0.70 | E205: 2.50 | F205: 4.50 | G205: 43.50 | H205: №21 Дели2016
A206: Рассольник ленинградский с курицей, со сметаной | C206: 200/15/5 | D206: 4.56 | E206: 7.50 | F206: 12.64 | G206: 136.30 | H206: №82 Дели 2016
A207: Биточки рубленые из рыбы | C207: 70 | D207: 8.75 | E207: 6.80 | F207: 8.15 | G207: 129.00 | H207: ТТК №3Д
... 130 more rows
